Body Name,Body,Service Level,Expense Type,Expense Code,Narrative,Date,Transaction Number,Amount,Capital and Revenue,Supplier Name,Supplier ID
South Ribble Borough Council,http://statistics.data.gov.uk/id/local-authority/30UE,COMU-Communities,External Contractors Charges,4570,"ADDRESS REDACTED. Work: The removal of a large amount of miscellaneous waste from the property, as requested: 29th September 2022 Requested By NAME R",25/11/2022,0000482833,381.01,Revenue,3d Environmental Ltd T/A 4DENV,0
South Ribble Borough Council,http://statistics.data.gov.uk/id/local-authority/30UE,CDIG-Customer and Digital,Materials General,4040,2 x Dennis Pads Bin 539 2 x Pads Bin 538,11/11/2022,0000482775,214.00,Revenue,A & P Truck & Trailer Parts,0
South Ribble Borough Council,http://statistics.data.gov.uk/id/local-authority/30UE,CDIG-Customer and Digital,Materials General,4040,Brake discs NUMBER PLATE REDACTED,11/11/2022,0000482775,185.00,Revenue,A & P Truck & Trailer Parts,0
South Ribble Borough Council,http://statistics.data.gov.uk/id/local-authority/30UE,CDIG-Customer and Digital,Materials General,4040,3x Brake Pads Bin 539,11/11/2022,0000483020,228.00,Revenue,A & P Truck & Trailer Parts,0
South Ribble Borough Council,http://statistics.data.gov.uk/id/local-authority/30UE,CDIG-Customer and Digital,Materials General,4040,2 x caliper slider kits NUMBER PLATE REDACTED,11/11/2022,0000483020,78.18,Revenue,A & P Truck & Trailer Parts,0
South Ribble Borough Council,http://statistics.data.gov.uk/id/local-authority/30UE,CDIG-Customer and Digital,Materials General,4040,Nox sensor NUMBER PLATE REDACTED,11/11/2022,0000483021,295.00,Revenue,A & P Truck & Trailer Parts,0
South Ribble Borough Council,http://statistics.data.gov.uk/id/local-authority/30UE,COMP-Commercial and Property,Reactive Repair & Maintenance,2020,To investigate the leak and repair as required. I`m not sure what`s causing this photos have been sent,25/11/2022,0000483218,500.00,Revenue,Ainscoe Plumbing & Heating Ltd,0
South Ribble Borough Council,http://statistics.data.gov.uk/id/local-authority/30UE,COMU-Communities,Consultancy Fees,4541,cancelled by credit,11/11/2022,0000481223,"201,712.60",Revenue,Alliance Leisure Services Limited,0
South Ribble Borough Council,http://statistics.data.gov.uk/id/local-authority/30UE,COMU-Communities,Consultancy Fees,4541,"PSDS3, decarbonisation works to the Civic Centre, Moss Side Depot, South Ribble Tennis Centre, Leyland, Penwortham and Bamber Bridge Leisure Centres.",11/11/2022,0000482810,"145,167.60",Revenue,Alliance Leisure Services Limited,0
South Ribble Borough Council,http://statistics.data.gov.uk/id/local-authority/30UE,CDIG-Customer and Digital,Bank Charges,4811,post office,11/11/2022,0000482939,523.48,Revenue,ALLPAY LTD,0
South Ribble Borough Council,http://statistics.data.gov.uk/id/local-authority/30UE,CDIG-Customer and Digital,Bank Charges,4811,pay point,11/11/2022,0000482939,69.97,Revenue,ALLPAY LTD,0
South Ribble Borough Council,http://statistics.data.gov.uk/id/local-authority/30UE,CDIG-Customer and Digital,Bank Charges,4811,webconnect,11/11/2022,0000482939,46.00,Revenue,ALLPAY LTD,0
South Ribble Borough Council,http://statistics.data.gov.uk/id/local-authority/30UE,COMU-Communities,Capital Grant,C570,DFG WORK FOR ADAPTATION FOR  LEVEL ACCESS BATHROOM AT ADDRESS REDACTED AS PER SRBC PLANS AND QUOTE SUPPLIED,25/11/2022,0000483217,"4,481.00",Revenue,ALN PLUMBING LTD,0
South Ribble Borough Council,http://statistics.data.gov.uk/id/local-authority/30UE,COMU-Communities,Operational Equip & Tools,4010,"Grass cutting for 5 area`s at Clitheroe, Burnley, Blackburn, Oakenclough & Chorley, quarterly - per 2022/23",11/11/2022,0000481747,"4,695.00",Revenue,Alpha Pest Control Ltd,0
South Ribble Borough Council,http://statistics.data.gov.uk/id/local-authority/30UE,CDIG-Customer and Digital,Agency Staff,1121,Agency Staff w/e 02/10/2022,18/11/2022,0000482520,"8,087.52",Revenue,ALS Managed Services Ltd,0
South Ribble Borough Council,http://statistics.data.gov.uk/id/local-authority/30UE,CDIG-Customer and Digital,Agency Staff,1121,Agency Staff w/e 09/10/2022,18/11/2022,0000482614,"7,303.80",Revenue,ALS Managed Services Ltd,0
South Ribble Borough Council,http://statistics.data.gov.uk/id/local-authority/30UE,CDIG-Customer and Digital,Agency Staff,1121,Agency Staff w/e 23/10/2022,18/11/2022,0000482779,"7,964.52",Revenue,ALS Managed Services Ltd,0
South Ribble Borough Council,http://statistics.data.gov.uk/id/local-authority/30UE,CDIG-Customer and Digital,Agency Staff,1121,Agency Staff w/e 23/10/2022,18/11/2022,0000482985,"7,960.66",Revenue,ALS Managed Services Ltd,0
South Ribble Borough Council,http://statistics.data.gov.uk/id/local-authority/30UE,CDIG-Customer and Digital,Agency Staff,1121,Agency Staff w/e 30/10/2022,18/11/2022,0000483178,"7,606.56",Revenue,ALS Managed Services Ltd,0
South Ribble Borough Council,http://statistics.data.gov.uk/id/local-authority/30UE,COMU-Communities,Core Fund,4861,"Lamppost stress testing on Leyland road, Penwortham",11/11/2022,0000482776,280.00,Revenue,Altitude Services,0
South Ribble Borough Council,http://statistics.data.gov.uk/id/local-authority/30UE,COMP-Commercial and Property,Reactive Repair & Maintenance,2020,Remedial works for the roof at ADDRESS REDACTED as per email on 29/9/22,04/11/2022,0000482436,600.00,Revenue,AMS Cladding,0
South Ribble Borough Council,http://statistics.data.gov.uk/id/local-authority/30UE,COMP-Commercial and Property,Reactive Repair & Maintenance,2020,Work carried out Saturday due to a tile out of place on the corner of the roof that�s allowing damp into the dentist at ADDRESS REDACTED. Problem pic,04/11/2022,0000482624,600.00,Revenue,AMS Cladding,0
South Ribble Borough Council,http://statistics.data.gov.uk/id/local-authority/30UE,COMP-Commercial and Property,Cap Contract Payment,C230,Additional works to scope,25/11/2022,0000483252,"1,125.00",Revenue,APEC Environmental Ltd,0
South Ribble Borough Council,http://statistics.data.gov.uk/id/local-authority/30UE,POLY-Policy,Electoral Administration Act,4970,Attendance on AEA �Key considerations for Returning Officers and their deputies� course for NAME REDACTED,18/11/2022,0000482051,534.00,Revenue,ASSOC OF ELECTORAL ADMINISTRATORS LTD,0
South Ribble Borough Council,http://statistics.data.gov.uk/id/local-authority/30UE,CDIG-Customer and Digital,Operational Equip & Tools,4010,1 X AS-7261 700KG Single Post Storage Lift,11/11/2022,0000482700,"1,299.00",Revenue,Automotech Services Ltd,0
South Ribble Borough Council,http://statistics.data.gov.uk/id/local-authority/30UE,CDIG-Customer and Digital,Operational Equip & Tools,4010,Delivery to ADDRESS REDACTED,11/11/2022,0000482700,140.00,Revenue,Automotech Services Ltd,0
South Ribble Borough Council,http://statistics.data.gov.uk/id/local-authority/30UE,CDIG-Customer and Digital,Miscellaneous Expenses,4851,CALENDARS AS PER QUOTE 169740A,18/11/2022,0000483171,"4,878.00",Revenue,B & D PRINT SERVICES LTD,0
South Ribble Borough Council,http://statistics.data.gov.uk/id/local-authority/30UE,POLY-Policy,Amount Paid,0030,28 march,01/11/2022,0000477774,"11,443.70",Revenue,Barclays Bank Plc,0
South Ribble Borough Council,http://statistics.data.gov.uk/id/local-authority/30UE,POLY-Policy,Amount Paid,0030,28 oct 22,01/11/2022,0000477775,"7,601.79",Revenue,Barclays Bank Plc,0
South Ribble Borough Council,http://statistics.data.gov.uk/id/local-authority/30UE,POLY-Policy,Amount Paid,0030,28 november 22,01/11/2022,0000477776,"5,335.58",Revenue,Barclays Bank Plc,0
South Ribble Borough Council,http://statistics.data.gov.uk/id/local-authority/30UE,POLY-Policy,Amount Paid,0030,28 dec 21,01/11/2022,0000477777,"13,348.03",Revenue,Barclays Bank Plc,0
South Ribble Borough Council,http://statistics.data.gov.uk/id/local-authority/30UE,POLY-Policy,Amount Paid,0030,28 jan 22,01/11/2022,0000477778,"2,294.84",Revenue,Barclays Bank Plc,0
South Ribble Borough Council,http://statistics.data.gov.uk/id/local-authority/30UE,POLY-Policy,Amount Paid,0030,28 feb 22,01/11/2022,0000477779,"11,104.60",Revenue,Barclays Bank Plc,0
South Ribble Borough Council,http://statistics.data.gov.uk/id/local-authority/30UE,POLY-Policy,Amount Paid,0030,28 April 2022,01/11/2022,0000481016,"7,956.49",Revenue,Barclays Bank Plc,0
South Ribble Borough Council,http://statistics.data.gov.uk/id/local-authority/30UE,POLY-Policy,Amount Paid,0030,28 July 2022,01/11/2022,0000481017,"17,862.63",Revenue,Barclays Bank Plc,0
South Ribble Borough Council,http://statistics.data.gov.uk/id/local-authority/30UE,POLY-Policy,Amount Paid,0030,28 June 2022,01/11/2022,0000481018,"12,985.20",Revenue,Barclays Bank Plc,0
South Ribble Borough Council,http://statistics.data.gov.uk/id/local-authority/30UE,POLY-Policy,Amount Paid,0030,28 May 2022,01/11/2022,0000481019,"19,201.74",Revenue,Barclays Bank Plc,0
South Ribble Borough Council,http://statistics.data.gov.uk/id/local-authority/30UE,POLY-Policy,Amount Paid,0030,28 aug 22,01/11/2022,0000481536,"11,646.09",Revenue,Barclays Bank Plc,0
South Ribble Borough Council,http://statistics.data.gov.uk/id/local-authority/30UE,COMP-Commercial and Property,Planned Annual Repair & Maintenance,2021,EICR Report to be carried out at ADDRESS REDACTED,04/11/2022,0000482487,243.00,Revenue,BELEC ELECTRICAL LTD,0
South Ribble Borough Council,http://statistics.data.gov.uk/id/local-authority/30UE,COMP-Commercial and Property,Planned Annual Repair & Maintenance,2021,EICR report to be carried out for ADDRESS REDACTED,04/11/2022,0000482487,243.00,Revenue,BELEC ELECTRICAL LTD,0
South Ribble Borough Council,http://statistics.data.gov.uk/id/local-authority/30UE,PDEV-Planning and Development,Misc Capital Payments,C234,Disconnection of temp cafe pod on Worden Park,04/11/2022,0000482669,250.00,Revenue,BELEC ELECTRICAL LTD,0
South Ribble Borough Council,http://statistics.data.gov.uk/id/local-authority/30UE,CDIG-Customer and Digital,Cap Contract Payment,C230,"Tubular heaters and switch relocation, ADDRESS REDACTED",18/11/2022,0000482692,250.00,Revenue,BELEC ELECTRICAL LTD,0
South Ribble Borough Council,http://statistics.data.gov.uk/id/local-authority/30UE,COMP-Commercial and Property,Reactive Repair & Maintenance,2020,"ADRESS REDACTED pavilion, following vandalism. To replace the security light and cage - requested by NAME REDACTED",11/11/2022,0000482841,250.00,Revenue,BELEC ELECTRICAL LTD,0
South Ribble Borough Council,http://statistics.data.gov.uk/id/local-authority/30UE,COMP-Commercial and Property,Reactive Repair & Maintenance,2020,"Q 10th Oct as per NAME REDACTED request To install total 7 lights reinstate light fittng to ceiling fixed above suite doors, change lighting controls",11/11/2022,0000482843,549.30,Revenue,BELEC ELECTRICAL LTD,0
South Ribble Borough Council,http://statistics.data.gov.uk/id/local-authority/30UE,COMP-Commercial and Property,Reactive Repair & Maintenance,2020,5:00 Hours install of single-phase meter as requested. Leyland Market as requested by NAME REDACTED Product single phase meter Product galv connectio,11/11/2022,0000483032,195.83,Revenue,BELEC ELECTRICAL LTD,0
South Ribble Borough Council,http://statistics.data.gov.uk/id/local-authority/30UE,COMP-Commercial and Property,Reactive Repair & Maintenance,2020,"Product STANDALONE PROXIMITY READER, IP65, 2000 USERSPROGRAMMER FOR EPX-10 READER PROXIMITY TOKEN BLUE - TO SUIT KP500 & EASIPROX 5:00 Hours For the ",11/11/2022,0000483032,272.00,Revenue,BELEC ELECTRICAL LTD,0
South Ribble Borough Council,http://statistics.data.gov.uk/id/local-authority/30UE,CDIG-Customer and Digital,External Contractors Charges,4570,MOT Test Fee & Lane Fee NUMBER PLATE REDACTED,11/11/2022,0000482762,113.00,Revenue,BLACKBURN WITH DARWEN BOROUGH COUNCIL,0
South Ribble Borough Council,http://statistics.data.gov.uk/id/local-authority/30UE,CDIG-Customer and Digital,External Contractors Charges,4570,MOT Test Fee & Lane Fee NUMBER PLATE REDACTED,11/11/2022,0000482762,113.00,Revenue,BLACKBURN WITH DARWEN BOROUGH COUNCIL,0
South Ribble Borough Council,http://statistics.data.gov.uk/id/local-authority/30UE,CDIG-Customer and Digital,External Contractors Charges,4570,lane fee,11/11/2022,0000482762,36.00,Revenue,BLACKBURN WITH DARWEN BOROUGH COUNCIL,0
South Ribble Borough Council,http://statistics.data.gov.uk/id/local-authority/30UE,CDIG-Customer and Digital,External Contractors Charges,4570,lane fee,11/11/2022,0000482762,36.00,Revenue,BLACKBURN WITH DARWEN BOROUGH COUNCIL,0
South Ribble Borough Council,http://statistics.data.gov.uk/id/local-authority/30UE,CDIG-Customer and Digital,GM Refurbishment,4657,"Removal of Fish from Pond N52, ADDRESS REDACTED",18/11/2022,0000483121,"1,000.00",Revenue,Blue Slate Fishery Limited,0
South Ribble Borough Council,http://statistics.data.gov.uk/id/local-authority/30UE,COMU-Communities,Cap Contract Payment,C230,Leisure Local Funds - Fighting Back project - offering free classes for the community,18/11/2022,0000483122,"9,900.00",Revenue,Box Clever CIC,0
South Ribble Borough Council,http://statistics.data.gov.uk/id/local-authority/30UE,COMU-Communities,Materials General,4040,Supply of lunches for HAF Programme between Monday 25th July and Thursday 18th August.1520 meals,11/11/2022,0000481749,"1,729.60",Revenue,BROTHERS OF CHARITY SERVICES,0
South Ribble Borough Council,http://statistics.data.gov.uk/id/local-authority/30UE,CDIG-Customer and Digital,Materials General,4040,1x Sensor1 x water pump 1x brush motor NUMBER PLATE REDACTED,11/11/2022,0000482736,348.44,Revenue,Bucher Municipal Ltd,0
South Ribble Borough Council,http://statistics.data.gov.uk/id/local-authority/30UE,CDIG-Customer and Digital,Materials General,4040,2x pivot pins 4x bearings 2x bushes 1x hub NUMBER PLATE REDACTED,25/11/2022,0000483029,319.10,Revenue,Bucher Municipal Ltd,0
South Ribble Borough Council,http://statistics.data.gov.uk/id/local-authority/30UE,CDIG-Customer and Digital,Hiring Expenses,3212,To replace 2 damaged tyres on hired vehicle NUMBER PLATE REDACTED Including travel to and from site,04/11/2022,0000482661,420.17,Revenue,C P DAVIDSON & SONS LTD,0
South Ribble Borough Council,http://statistics.data.gov.uk/id/local-authority/30UE,CDIG-Customer and Digital,Hiring Expenses,3212,Hire of RCV NUMBER PLATE REDACTED 12.9.22 - 22.9.22 delivery  & collection charge,25/11/2022,0000483030,"1,540.00",Revenue,C P DAVIDSON & SONS LTD,0
South Ribble Borough Council,http://statistics.data.gov.uk/id/local-authority/30UE,COMP-Commercial and Property,Planned Annual Repair & Maintenance,2021,Annual PAT Testing 2022/2023 for South Ribble Borough Council - at Civic Centre,11/11/2022,0000482847,391.30,Revenue,Calbarrie Compliance Services Ltd,0
South Ribble Borough Council,http://statistics.data.gov.uk/id/local-authority/30UE,CDIG-Customer and Digital,Consultancy Fees,4541,DWP LA data share programme - IT costs for work completed during the period 1/04/2022 to 30/09/2022 per correspondence dated 10/10/2022,11/11/2022,0000482777,"5,537.83",Revenue,CAPITA BUSINESS SERVICES LTD,0
South Ribble Borough Council,http://statistics.data.gov.uk/id/local-authority/30UE,COMU-Communities,Materials General,4040,To supply and fit to ADDRESS REDACTED,11/11/2022,0000483016,615.75,Revenue,Carpets Direct,0
South Ribble Borough Council,http://statistics.data.gov.uk/id/local-authority/30UE,COMU-Communities,Cap Contract Payment,C230,Boost Fund Plus Funds - Lostock Hall Friendship and Activities refurbishment - enhancement of the centre,18/11/2022,0000483125,"19,500.00",Revenue,CENTRAL LANCASHIRE AGE CONCERN LTD,0
South Ribble Borough Council,http://statistics.data.gov.uk/id/local-authority/30UE,POLY-Policy,Contributions to Other Bodies,4730,invoice 3 of dial a ride payment,25/11/2022,0000483200,"5,000.00",Revenue,Central Lancashire Dial A Ride,0
South Ribble Borough Council,http://statistics.data.gov.uk/id/local-authority/30UE,COMU-Communities,Professional Fees,4510,Deposit for 2 performances for HAF for 23 December under booking A4402,11/11/2022,0000482730,400.00,Revenue,Chaplins Entertainment Ltd,0
South Ribble Borough Council,http://statistics.data.gov.uk/id/local-authority/30UE,POLY-Policy,Miscellaneous Expenses,4851,Quarter 1 recharges 2022/23,04/11/2022,0000481862,"368,328.30",Revenue,CHORLEY BOROUGH COUNCIL,0
South Ribble Borough Council,http://statistics.data.gov.uk/id/local-authority/30UE,CDIG-Customer and Digital,External Contractors Charges,4570,South Ribble Buckshaw Waste Collections carried out by Chorley Council 2021/22,18/11/2022,0000482687,"38,861.00",Revenue,CHORLEY BOROUGH COUNCIL,0
South Ribble Borough Council,http://statistics.data.gov.uk/id/local-authority/30UE,CDIG-Customer and Digital,External Contractors Charges,4570,South Ribble Buckshaw Waste Collections carried out by Chorley Council 2022/23,18/11/2022,0000482687,"41,033.18",Revenue,CHORLEY BOROUGH COUNCIL,0
South Ribble Borough Council,http://statistics.data.gov.uk/id/local-authority/30UE,CDIG-Customer and Digital,Operational Equip & Tools,4010,Makita HM1812/110v,11/11/2022,0000482585,"1,053.65",Revenue,CHORLEY ELECTRICAL TRADERS LTD,0
South Ribble Borough Council,http://statistics.data.gov.uk/id/local-authority/30UE,COMP-Commercial and Property,Intruder Alarm,2035,to cover remainder for invoice 8595639 grnd at year end,11/11/2022,0000482791,370.00,Revenue,CHUBB LTD,0
South Ribble Borough Council,http://statistics.data.gov.uk/id/local-authority/30UE,COMP-Commercial and Property,Intruder Alarm,2035,To cover invoice number 8741682 for Leyland Market service charge for May 2021,11/11/2022,0000482853,258.00,Revenue,CHUBB LTD,0
South Ribble Borough Council,http://statistics.data.gov.uk/id/local-authority/30UE,COMU-Communities,Operational Equip & Tools,4010,Traceable recalibration of Trojan Noise Nuisance Recorder per Quotation no 43297,25/11/2022,0000482856,663.00,Revenue,CIRRUS RESEARCH PLC,0
South Ribble Borough Council,http://statistics.data.gov.uk/id/local-authority/30UE,POLY-Policy,Contributions to Other Bodies,4730,Provision of Grant to delivery advice services South Ribble 2022-2023,25/11/2022,0000482401,"25,000.00",Revenue,Citizens Advice Lancashire,0
South Ribble Borough Council,http://statistics.data.gov.uk/id/local-authority/30UE,POLY-Policy,Operational Equip & Tools,4010,17 x Column conversions Hough Lane tree upgrade,25/11/2022,0000483221,"5,109.00",Revenue,City Illuiminations Ltd,0
South Ribble Borough Council,http://statistics.data.gov.uk/id/local-authority/30UE,CDIG-Customer and Digital,Software Licensing,4243,Civica Housing module upgrade SRBC element of the shared costs of the Select Move partnership,11/11/2022,0000482754,"9,204.46",Revenue,CIVICA UK LTD,0
South Ribble Borough Council,http://statistics.data.gov.uk/id/local-authority/30UE,CDIG-Customer and Digital,Network and Security,4247,Service Item ICON Upgrade to v17.3,18/11/2022,0000483104,"10,000.00",Revenue,CIVICA UK LTD,0
South Ribble Borough Council,http://statistics.data.gov.uk/id/local-authority/30UE,CDIG-Customer and Digital,Network and Security,4247,ICON - 3D Secure V2 Licence Fee  �  on install in test. PO PUR0040053,25/11/2022,0000483105,"8,000.00",Revenue,CIVICA UK LTD,0
South Ribble Borough Council,http://statistics.data.gov.uk/id/local-authority/30UE,COMU-Communities,Temporary Accommodation,5311,B&B accommodation 13/9-19/9/2022 ZM KO left 15/9/22LA left 14/9/22SK night family roomFH night family room,11/11/2022,0000482741,"2,337.00",Revenue,CLAREMONT HOTEL,0
South Ribble Borough Council,http://statistics.data.gov.uk/id/local-authority/30UE,COMU-Communities,Temporary Accommodation,5311,"Hotel accommodation at the Claremont Hotel in Preston, booked for homeless individuals for October 2022.List of individuals:[04.10.22 - 10.10.22] ",25/11/2022,0000483128,"2,757.00",Revenue,CLAREMONT HOTEL,0
South Ribble Borough Council,http://statistics.data.gov.uk/id/local-authority/30UE,COMU-Communities,Temporary Accommodation,5311,"Hotel accommodation at the Claremont Hotel in Preston, booked for homeless individuals for October 2022.",25/11/2022,0000483129,"2,022.00",Revenue,CLAREMONT HOTEL,0
South Ribble Borough Council,http://statistics.data.gov.uk/id/local-authority/30UE,COMU-Communities,Temporary Accommodation,5311,"Hotel accommodation at the Claremont Hotel in Preston, booked for homeless individuals for October 2022.",25/11/2022,0000483130,"2,022.00",Revenue,CLAREMONT HOTEL,0
South Ribble Borough Council,http://statistics.data.gov.uk/id/local-authority/30UE,COMU-Communities,Temporary Accommodation,5311,"Hotel accommodation at the Claremont Hotel in Preston, booked for homeless individuals for October 2022.",25/11/2022,0000483131,"2,067.00",Revenue,CLAREMONT HOTEL,0
South Ribble Borough Council,http://statistics.data.gov.uk/id/local-authority/30UE,CDIG-Customer and Digital,Operational Equip & Tools,4010,PADLOCKS � SQUIRE 660 TO PASS KEY 9,11/11/2022,0000482623,220.00,Revenue,COLLINS & SONS,0
South Ribble Borough Council,http://statistics.data.gov.uk/id/local-authority/30UE,CDIG-Customer and Digital,Operational Equip & Tools,4010,PADLOCKS  - SQUIRE 660 TO PASS KEY 3,11/11/2022,0000482623,220.00,Revenue,COLLINS & SONS,0
South Ribble Borough Council,http://statistics.data.gov.uk/id/local-authority/30UE,CDIG-Customer and Digital,Operational Equip & Tools,4010,PADLOCKS  - SQUIRE 660 TO PASS KEY 10,11/11/2022,0000482623,418.00,Revenue,COLLINS & SONS,0
South Ribble Borough Council,http://statistics.data.gov.uk/id/local-authority/30UE,POLY-Policy,Amount Paid,0030,JULY 2022 - CHILDCARE VOUCHERS (V),01/11/2022,0000479951,"1,174.00",Revenue,COMPUTERSHARE VOUCHER SERVICES,0
South Ribble Borough Council,http://statistics.data.gov.uk/id/local-authority/30UE,POLY-Policy,Amount Paid,0030,JUNE 2022 - CHILDCARE VOUCHERS (V),01/11/2022,0000479952,"1,124.00",Revenue,COMPUTERSHARE VOUCHER SERVICES,0
South Ribble Borough Council,http://statistics.data.gov.uk/id/local-authority/30UE,POLY-Policy,Amount Paid,0030,AUGUST 2022 - CHILDCARE VOUCHERS (V),01/11/2022,0000480635,"1,224.00",Revenue,COMPUTERSHARE VOUCHER SERVICES,0
South Ribble Borough Council,http://statistics.data.gov.uk/id/local-authority/30UE,POLY-Policy,Busy Bees,1409,SEPTEMBER 2022 - CHILDCARE VOUCHERS (S),01/11/2022,0000481142,74.88,Revenue,COMPUTERSHARE VOUCHER SERVICES,0
South Ribble Borough Council,http://statistics.data.gov.uk/id/local-authority/30UE,POLY-Policy,Amount Paid,0030,SEPTEMBER 2022 - CHILDCARE VOUCHERS (V),01/11/2022,0000481142,"1,248.00",Revenue,COMPUTERSHARE VOUCHER SERVICES,0
South Ribble Borough Council,http://statistics.data.gov.uk/id/local-authority/30UE,POLY-Policy,Amount Paid,0030,SEPTEMBER 2022 - CHILDCARE VOUCHERS (V),01/11/2022,0000481806,"1,025.00",Revenue,COMPUTERSHARE VOUCHER SERVICES,0
South Ribble Borough Council,http://statistics.data.gov.uk/id/local-authority/30UE,POLY-Policy,Busy Bees,1409,SEPTEMBER 2022 - CHILDCARE VOUCHERS (S),01/11/2022,0000481806,61.50,Revenue,COMPUTERSHARE VOUCHER SERVICES,0
South Ribble Borough Council,http://statistics.data.gov.uk/id/local-authority/30UE,POLY-Policy,Busy Bees,1409,OCTOBER 2022 - CHILDCARE VOUCHERS (S),01/11/2022,0000482492,46.92,Revenue,COMPUTERSHARE VOUCHER SERVICES,0
South Ribble Borough Council,http://statistics.data.gov.uk/id/local-authority/30UE,POLY-Policy,Amount Paid,0030,OCTOBER 2022 - CHILDCARE VOUCHERS (V),01/11/2022,0000482492,782.00,Revenue,COMPUTERSHARE VOUCHER SERVICES,0
South Ribble Borough Council,http://statistics.data.gov.uk/id/local-authority/30UE,CDIG-Customer and Digital,External Contractors Charges,4570,"270x 240L Brown 0905 body and lid, print to body in white, standard axles, 200MM black wheels - stacked in 10`s ",11/11/2022,0000482857,"5,670.00",Revenue,Contenur UK Ltd,0
South Ribble Borough Council,http://statistics.data.gov.uk/id/local-authority/30UE,CDIG-Customer and Digital,External Contractors Charges,4570,Part Load Charge,11/11/2022,0000482857,200.00,Revenue,Contenur UK Ltd,0
South Ribble Borough Council,http://statistics.data.gov.uk/id/local-authority/30UE,COMP-Commercial and Property,Planned Annual Repair & Maintenance,2021,We require works to be completed on Penwortham Leisure Centre due to an issue on the roof. As per NAME REDACTED and quote 190560 dated 22nd May 2022 ,11/11/2022,0000482995,"5,685.00",Revenue,Coolair Services Limited,0
South Ribble Borough Council,http://statistics.data.gov.uk/id/local-authority/30UE,CDIG-Customer and Digital,Miscellaneous Expenses,4851,"Serve and evict travellers from SRBC Land known as Dandy Brook/St, Catherines Park ADDRESS REDACTED",11/11/2022,0000482785,"1,550.00",Revenue,Court Enforcement Specialists Ltd,0
South Ribble Borough Council,http://statistics.data.gov.uk/id/local-authority/30UE,CDIG-Customer and Digital,Miscellaneous Expenses,4851,Serve and evict travellers from SRBC Land at Bamber Bridge leisure centre,11/11/2022,0000482800,"3,050.00",Revenue,Court Enforcement Specialists Ltd,0
South Ribble Borough Council,http://statistics.data.gov.uk/id/local-authority/30UE,COMP-Commercial and Property,Operational Equip & Tools,4010,Please supply 1 x Test N Tag Pro  PAT test label bluetooth & serial printer ref 339A980 Seaward per NAME REDACTED request -,11/11/2022,0000482858,379.00,Revenue,CPC Re: COMBINED PRECISION COMPONENTS PLC,0
South Ribble Borough Council,http://statistics.data.gov.uk/id/local-authority/30UE,CDIG-Customer and Digital,Postage General,4291,POSTAGE FOR AUG 2022 TO MARCH 2023,04/11/2022,0000482656,509.14,Revenue,CRITIQOM,0
South Ribble Borough Council,http://statistics.data.gov.uk/id/local-authority/30UE,CDIG-Customer and Digital,Postage General,4291,POSTAGE FOR AUG 2022 TO MARCH 2023,11/11/2022,0000482978,576.69,Revenue,CRITIQOM,0
South Ribble Borough Council,http://statistics.data.gov.uk/id/local-authority/30UE,CDIG-Customer and Digital,Postage General,4291,POSTAGE FOR AUG 2022 TO MARCH 2023,25/11/2022,0000483110,704.97,Revenue,CRITIQOM,0
South Ribble Borough Council,http://statistics.data.gov.uk/id/local-authority/30UE,PDEV-Planning and Development,Professional Fees,4510,Printing and posting out of large neighbour consultations for planning applications - including Pickerings farm appeal and Farington Business Park.,25/11/2022,0000483283,"2,770.99",Revenue,CRITIQOM,0
South Ribble Borough Council,http://statistics.data.gov.uk/id/local-authority/30UE,CDIG-Customer and Digital,Computer Equipment,4241,1 x Apple 12.9� iPad Pro Cellular  128 GB � Space Grey 1 x Logitech Combo Touch folio case 1 x Belkin Screen Protector,11/11/2022,0000482816,943.30,Revenue,Currys Group Limited,0
South Ribble Borough Council,http://statistics.data.gov.uk/id/local-authority/30UE,GOVE-Governance,Legal,4821,PROFESSIONAL SERVICES IN RELATION TO A CLAIM UNDER THE EQUALITY ACT 2010,04/11/2022,0000482517,"1,665.00",Revenue,DAC BEACHCROFT LLP,0
South Ribble Borough Council,http://statistics.data.gov.uk/id/local-authority/30UE,GOVE-Governance,Legal,4821,Court Fees,04/11/2022,0000482517,383.00,Revenue,DAC BEACHCROFT LLP,0
South Ribble Borough Council,http://statistics.data.gov.uk/id/local-authority/30UE,COMP-Commercial and Property,Reactive Repair & Maintenance,2020,Please carry out works as per Quote ref 00014406 to replace HP safety valves & refrigerant Charge at Civic Centre as per NAME REDACTED request,11/11/2022,0000482859,"4,710.20",Revenue,DAIKIN APPLIED SERVICE,0
South Ribble Borough Council,http://statistics.data.gov.uk/id/local-authority/30UE,COMU-Communities,Contributions to Other Bodies,4730,Anvil Hotel MO placement - Nov 22,11/11/2022,0000482818,420.00,Revenue,David Iddon & Corrina Kellett,0
South Ribble Borough Council,http://statistics.data.gov.uk/id/local-authority/30UE,CDIG-Customer and Digital,Materials General,4040,"1x sensor, NUMBER PLATE REDACTED (NAME REDACTED)",18/11/2022,0000479632,493.64,Revenue,DENNIS EAGLE LTD,0
South Ribble Borough Council,http://statistics.data.gov.uk/id/local-authority/30UE,CDIG-Customer and Digital,Materials General,4040,Wiper Motor NUMBER PLATE REDACTED,11/11/2022,0000482399,278.26,Revenue,DENNIS EAGLE LTD,0
South Ribble Borough Council,http://statistics.data.gov.uk/id/local-authority/30UE,CDIG-Customer and Digital,Materials General,4040,Engine Service Kit Hyd Filter Kit ARB Bushes NUMBER PLATE REDACTED,11/11/2022,0000482514,850.72,Revenue,DENNIS EAGLE LTD,0
South Ribble Borough Council,http://statistics.data.gov.uk/id/local-authority/30UE,CDIG-Customer and Digital,Materials General,4040,Drag Link NUMBER PLATE REDACTED,11/11/2022,0000483022,592.09,Revenue,DENNIS EAGLE LTD,0
South Ribble Borough Council,http://statistics.data.gov.uk/id/local-authority/30UE,CDIG-Customer and Digital,External Contractors Charges,4570,"Spec Repair, NUMBER PLATE REDACTED",25/11/2022,0000483037,723.71,Revenue,DENNIS EAGLE LTD,0
South Ribble Borough Council,http://statistics.data.gov.uk/id/local-authority/30UE,COMP-Commercial and Property,Planned Annual Repair & Maintenance,2021,"Our Ref: 2162 as per NAME REDACTED request Re: Installation of Smoke Detectors, South Ribble Borough Council, Civic Centre, ",18/11/2022,0000483116,"2,102.00",Revenue,DES Electrical Services Ltd,0
South Ribble Borough Council,http://statistics.data.gov.uk/id/local-authority/30UE,CDIG-Customer and Digital,Professional Fees,4510,HUB SOFTWARE,11/11/2022,0000483014,"1,750.00",Revenue,Destin Solutions Limited,0
South Ribble Borough Council,http://statistics.data.gov.uk/id/local-authority/30UE,COMP-Commercial and Property,Reactive Repair & Maintenance,2020,"Supply and fit 2 x new signs to stalls at Leyland Market for the Market Manager, NAME REDACTED",11/11/2022,0000482685,360.00,Revenue,DOUGLAS SIGNS,0
South Ribble Borough Council,http://statistics.data.gov.uk/id/local-authority/30UE,COMP-Commercial and Property,Planned Annual Repair & Maintenance,2021,2 days High Performance Jet Vac Tanker to remove hazardous waste from the Quadraceptor and the two stage oil separator near the fuel tanks. Suck out ,25/11/2022,0000483082,"1,820.00",Revenue,DRAIN ALERT LTD,0
South Ribble Borough Council,http://statistics.data.gov.uk/id/local-authority/30UE,COMP-Commercial and Property,Planned Annual Repair & Maintenance,2021,To also include an additional for the hazardous waste to be removed please. As per NAME REDACTED request as part of PPM programme for 2022/2023,25/11/2022,0000483082,145.00,Revenue,DRAIN ALERT LTD,0
South Ribble Borough Council,http://statistics.data.gov.uk/id/local-authority/30UE,CDIG-Customer and Digital,Materials General,4040,Purchase of Electric Scooter Vmoto Super Soco CPx Dual,25/11/2022,0000483180,"3,366.66",Revenue,Ducati Manchester Ltd T/A Ducati Preston,0
South Ribble Borough Council,http://statistics.data.gov.uk/id/local-authority/30UE,CDIG-Customer and Digital,Materials General,4040,,25/11/2022,0000483180,55.00,Revenue,Ducati Manchester Ltd T/A Ducati Preston,0
South Ribble Borough Council,http://statistics.data.gov.uk/id/local-authority/30UE,COMP-Commercial and Property,Professional Fees,4510,Subsidy Control Advice - South Ribble Borough Council - Levelling Up Fund,25/11/2022,0000483183,"3,500.00",Revenue,DWF LLP,0
South Ribble Borough Council,http://statistics.data.gov.uk/id/local-authority/30UE,CDIG-Customer and Digital,Waste Permits,5110,04/04/2022,18/11/2022,0000483139,"1,230.25",Revenue,ENVIRONMENT AGENCY,0
South Ribble Borough Council,http://statistics.data.gov.uk/id/local-authority/30UE,CDIG-Customer and Digital,Materials General,4040,1 x Half Shaft NUMBER PLATE REDACTED,11/11/2022,0000482774,300.00,Revenue,Euro Municipals Ltd,0
South Ribble Borough Council,http://statistics.data.gov.uk/id/local-authority/30UE,CDIG-Customer and Digital,Materials General,4040,4 x O rings 1 x Gland nut 1 x Hex nut 1x Screw pan head 1x Trunnion 4x Ring cam 2x Ball and cage set 4x Washers 2x Bareings 8 x Spring discs NUMBER P,11/11/2022,0000482869,310.00,Revenue,F R SHARROCK LTD,0
South Ribble Borough Council,http://statistics.data.gov.uk/id/local-authority/30UE,CDIG-Customer and Digital,Materials General,4040,3 x Bonnet Hinge BIN1101,25/11/2022,0000483166,79.27,Revenue,F R SHARROCK LTD,0
South Ribble Borough Council,http://statistics.data.gov.uk/id/local-authority/30UE,CDIG-Customer and Digital,Materials General,4040,2 Male Track Rod End BIN 1107,25/11/2022,0000483166,98.93,Revenue,F R SHARROCK LTD,0
South Ribble Borough Council,http://statistics.data.gov.uk/id/local-authority/30UE,CDIG-Customer and Digital,Materials General,4040,3 x Female Track Rod End BIN1108,25/11/2022,0000483166,148.39,Revenue,F R SHARROCK LTD,0
South Ribble Borough Council,http://statistics.data.gov.uk/id/local-authority/30UE,CDIG-Customer and Digital,Materials General,4040,35 x Sole Plate BIN1265,25/11/2022,0000483166,"1,191.65",Revenue,F R SHARROCK LTD,0
South Ribble Borough Council,http://statistics.data.gov.uk/id/local-authority/30UE,CDIG-Customer and Digital,Materials General,4040,245 Sole Plate Screws BIN1114,25/11/2022,0000483166,77.18,Revenue,F R SHARROCK LTD,0
South Ribble Borough Council,http://statistics.data.gov.uk/id/local-authority/30UE,COMU-Communities,Cap Contract Payment,C230,Boost Fund Plus funds for Finleys First Steps - a 4 week programme for expectant parents,18/11/2022,0000483123,"19,091.00",Revenue,Finleys Families CIC,0
South Ribble Borough Council,http://statistics.data.gov.uk/id/local-authority/30UE,CDIG-Customer and Digital,Materials General,4040,1004188 - FOOTBALL PITCH LINE MARKER PAINT 10LTRS-PITCHMARKER Q2,18/11/2022,0000482871,511.68,Revenue,Fleet Line Markers Limited,0
South Ribble Borough Council,http://statistics.data.gov.uk/id/local-authority/30UE,CDIG-Customer and Digital,Cap Contract Payment,C230,7 Strada Transfer EU03- Back Office System,11/11/2022,0000482763,800.00,Revenue,Flowbird Smart City UK Ltd,0
South Ribble Borough Council,http://statistics.data.gov.uk/id/local-authority/30UE,POLY-Policy,External Catering Charges,4575,"Catering provided for the Worden Hall Opening on Friday 30 September by the Folly Cafe- Canapes, Sparkling Elderflower, Prosecco and Fresh Juices for",04/11/2022,0000482675,581.70,Revenue,Folly Coffee House,0
South Ribble Borough Council,http://statistics.data.gov.uk/id/local-authority/30UE,CDIG-Customer and Digital,Materials General,4040,Dual mass fly wheel NUMBER PLATE REDACTED,11/11/2022,0000482873,846.42,Revenue,Fred Coupe,0
South Ribble Borough Council,http://statistics.data.gov.uk/id/local-authority/30UE,CDIG-Customer and Digital,Materials General,4040,Dual mass fly wheel NUMBER PLATE REDACTED,25/11/2022,0000483191,931.06,Revenue,Fred Coupe,0
South Ribble Borough Council,http://statistics.data.gov.uk/id/local-authority/30UE,COMU-Communities,Core Fund,4861,Funds for an Aquatic Plants Project,25/11/2022,0000483214,"1,000.00",Revenue,Friends of Worden Park,0
South Ribble Borough Council,http://statistics.data.gov.uk/id/local-authority/30UE,CDIG-Customer and Digital,Petrol,3131,Fuel W/C 24.10.22,11/11/2022,0000483011,323.95,Revenue,Fuel Card Services,0
South Ribble Borough Council,http://statistics.data.gov.uk/id/local-authority/30UE,COMP-Commercial and Property,Reactive Repair & Maintenance,2020,Penwortham Community Centre as per NAME REDACTED request and your ref Our Ref: FAD/ZB/1001/CL/01 Measured survey of existing building Our proposed fe,04/11/2022,0000482693,"1,357.00",Revenue,FuZED Architecture and Design Ltd,0
South Ribble Borough Council,http://statistics.data.gov.uk/id/local-authority/30UE,COMU-Communities,Dev ftarget Sports-Coaching,4894,Sports Awards 14th October 2022Event HostNet,18/11/2022,0000483099,600.00,Revenue,G Marriott T/A Jed Stone,0
South Ribble Borough Council,http://statistics.data.gov.uk/id/local-authority/30UE,COMU-Communities,Materials General,4040,Supply of various items of Nike clothing for Active Health Uniform. SRBC Logo and ``Active Health`` Screen printed onto garments.,25/11/2022,0000482429,"1,206.00",Revenue,Galaxy,0
South Ribble Borough Council,http://statistics.data.gov.uk/id/local-authority/30UE,COMP-Commercial and Property,Reactive Repair & Maintenance,2020,"As requested, please see below the prices for GOS heating to provide a design and specification for the two different types of heating system which w",18/11/2022,0000482875,710.00,Revenue,GOS Heating Ltd,0
South Ribble Borough Council,http://statistics.data.gov.uk/id/local-authority/30UE,COMP-Commercial and Property,Reactive Repair & Maintenance,2020,This is following the Gas safety test(s)/inspection. As per NAME REDACTED request Replacement of the 3� Gas solenoid valve. This valve is to shut off,11/11/2022,0000482877,"2,914.10",Revenue,GOS Heating Ltd,0
South Ribble Borough Council,http://statistics.data.gov.uk/id/local-authority/30UE,COMP-Commercial and Property,Reactive Repair & Maintenance,2020,To replace pressurisation in the AHU  in The Civic Business Centre. As per NAME REDACTED request,11/11/2022,0000482931,"1,645.00",Revenue,GOS Heating Ltd,0
South Ribble Borough Council,http://statistics.data.gov.uk/id/local-authority/30UE,COMP-Commercial and Property,Reactive Repair & Maintenance,2020,"Inspection found that boiler no 2 had a pin holed heat exchanger and had to isolate the boiler. The flues for the boilers are inadequately bracketed,",11/11/2022,0000483000,"4,023.20",Revenue,GOS Heating Ltd,0
South Ribble Borough Council,http://statistics.data.gov.uk/id/local-authority/30UE,COMP-Commercial and Property,Reactive Repair & Maintenance,2020,To replace the boiler pressurisation unit in The Civic Business Centre. As per NAME REDACTED request,25/11/2022,0000483179,"1,645.00",Revenue,GOS Heating Ltd,0
South Ribble Borough Council,http://statistics.data.gov.uk/id/local-authority/30UE,COMU-Communities,Capital Grant,C570,DFG WORK FOR ADAPTATION FOR LEVEL ACCESS BATHROOM  AT ADDRESS REDACTED AS PER SRBC PLANS AND QUOTE SUPPLIED,25/11/2022,0000483213,"5,132.75",Revenue,GOS Heating Ltd,0
South Ribble Borough Council,http://statistics.data.gov.uk/id/local-authority/30UE,COMP-Commercial and Property,Cap Contract Payment,C230,Leyland Town Deal Project - Procurement Strategy - Stage 2,18/11/2022,0000480578,"2,153.16",Revenue,Gosling Consulting Limited,0
South Ribble Borough Council,http://statistics.data.gov.uk/id/local-authority/30UE,COMP-Commercial and Property,Cap Contract Payment,C230,Consultancy Services - McKenzie Arms,18/11/2022,0000482032,"1,793.83",Revenue,Gosling Consulting Limited,0
South Ribble Borough Council,http://statistics.data.gov.uk/id/local-authority/30UE,COMP-Commercial and Property,Cap Contract Payment,C230,Leyland Town Deal - Additional Document Management Services,18/11/2022,0000482043,525.00,Revenue,Gosling Consulting Limited,0
South Ribble Borough Council,http://statistics.data.gov.uk/id/local-authority/30UE,COMP-Commercial and Property,Cap Contract Payment,C230,Temporary grease trap fees for Worden Hall.,18/11/2022,0000482657,250.80,Revenue,Gosling Consulting Limited,0
South Ribble Borough Council,http://statistics.data.gov.uk/id/local-authority/30UE,COMP-Commercial and Property,Cap Contract Payment,C230,Consultancy Services - McKenzie Arms,18/11/2022,0000482722,"1,793.83",Revenue,Gosling Consulting Limited,0
South Ribble Borough Council,http://statistics.data.gov.uk/id/local-authority/30UE,COMP-Commercial and Property,Cap Contract Payment,C230,Leyland Town Deal - Additional Document Management Services,18/11/2022,0000482727,525.00,Revenue,Gosling Consulting Limited,0
South Ribble Borough Council,http://statistics.data.gov.uk/id/local-authority/30UE,COMP-Commercial and Property,Cap Contract Payment,C230,Leyland Town Deal Project - Procurement Strategy - Stage 2,18/11/2022,0000482729,"2,512.00",Revenue,Gosling Consulting Limited,0
South Ribble Borough Council,http://statistics.data.gov.uk/id/local-authority/30UE,POLY-Policy,External Audit Fees,4512,2022/23 Audit Fees,18/11/2022,0000482123,"8,455.25",Revenue,Grant Thornton UK LLP,0
South Ribble Borough Council,http://statistics.data.gov.uk/id/local-authority/30UE,POLY-Policy,GMC -PIA Payments,1701,Rechargeable Pension costs second half 22/23,25/11/2022,0000483222,"7,119.96",Revenue,GREATER MANCHESTER PENSION FUND,0
South Ribble Borough Council,http://statistics.data.gov.uk/id/local-authority/30UE,CDIG-Customer and Digital,GM Refurbishment,4657,Quote ref. S4184 x1 88020801 Mirage Seat and 8mm Chain Assembly for 2.4m Frame with x1 harness 88020701. Total cost including delivery. code 174300/4,18/11/2022,0000482878,622.34,Revenue,HAGS SMP LTD,0
South Ribble Borough Council,http://statistics.data.gov.uk/id/local-authority/30UE,COMU-Communities,External Catering Charges,4575,Lunches for HAF Plus for October half term,11/11/2022,0000482879,"3,260.00",Revenue,Halls Bakery Limited,0
South Ribble Borough Council,http://statistics.data.gov.uk/id/local-authority/30UE,COMP-Commercial and Property,Agency Staff,1121,NAME REDACTED- Estates and Facilities Manager - South Ribble Borough Council,25/11/2022,0000481814,"1,960.00",Revenue,Hays Specialist Recruitment Ltd,0
South Ribble Borough Council,http://statistics.data.gov.uk/id/local-authority/30UE,COMP-Commercial and Property,Agency Staff,1121,NAME REDACTED- 24 week contract 36.5 hours per week- Service Lead 50% South Ribble Borough Council,11/11/2022,0000482482,"2,760.00",Revenue,Hays Specialist Recruitment Ltd,0
South Ribble Borough Council,http://statistics.data.gov.uk/id/local-authority/30UE,CDIG-Customer and Digital,Software Licensing,4243,Access control hardware Door installation and configuration (including PM) Time recording hardware Professional Services Total Capital Revenue Time r,18/11/2022,0000483091,"5,412.00",Revenue,HFX LTD,0
South Ribble Borough Council,http://statistics.data.gov.uk/id/local-authority/30UE,GOVE-Governance,Land Registry Fees,4523,11-aug-22,01/11/2022,0000481072,291.00,Revenue,HM LAND REGISTRY,0
South Ribble Borough Council,http://statistics.data.gov.uk/id/local-authority/30UE,COMU-Communities,Cap Contract Payment,C230,Local Leisure Funds - Completion of car parking areas and landscaping,18/11/2022,0000483157,"20,000.00",Revenue,HOOLE VILLAGE MEMORIAL HALL COMMITTEE,0
South Ribble Borough Council,http://statistics.data.gov.uk/id/local-authority/30UE,CDIG-Customer and Digital,Technical Support,4246,Project work NAME REDACTED TMP 10,11/11/2022,0000482798,"6,500.00",Revenue,Hybrit Services Limited,0
South Ribble Borough Council,http://statistics.data.gov.uk/id/local-authority/30UE,CDIG-Customer and Digital,Cap Contract Payment,C230,Remediation works at Hawksbury Drive,18/11/2022,0000482373,"6,416.27",Revenue,JJ O`GRADY LTD,0
South Ribble Borough Council,http://statistics.data.gov.uk/id/local-authority/30UE,CDIG-Customer and Digital,Cap Contract Payment,C230,Resurfacing works at Hawksbury drive car park,18/11/2022,0000482374,"24,070.01",Revenue,JJ O`GRADY LTD,0
South Ribble Borough Council,http://statistics.data.gov.uk/id/local-authority/30UE,CDIG-Customer and Digital,Cap Contract Payment,C230,Additional works at Hawksbury drive car park,18/11/2022,0000482647,"13,969.81",Revenue,JJ O`GRADY LTD,0
South Ribble Borough Council,http://statistics.data.gov.uk/id/local-authority/30UE,CDIG-Customer and Digital,Cap Contract Payment,C230,Investigation works at Hawksbury Drive,18/11/2022,0000482648,800.00,Revenue,JJ O`GRADY LTD,0
South Ribble Borough Council,http://statistics.data.gov.uk/id/local-authority/30UE,CDIG-Customer and Digital,GM Refurbishment,4657,60no. Bird`s mouth post 100x100x900mm,11/11/2022,0000482477,390.00,Revenue,JOHN HY MAYOR & SONS LTD,0
South Ribble Borough Council,http://statistics.data.gov.uk/id/local-authority/30UE,CDIG-Customer and Digital,GM Refurbishment,4657,16no. Rails 100x100x3600mm,11/11/2022,0000482477,311.04,Revenue,JOHN HY MAYOR & SONS LTD,0
South Ribble Borough Council,http://statistics.data.gov.uk/id/local-authority/30UE,CDIG-Customer and Digital,GM Refurbishment,4657,75no. Bishops hat galv straps,11/11/2022,0000482477,232.50,Revenue,JOHN HY MAYOR & SONS LTD,0
South Ribble Borough Council,http://statistics.data.gov.uk/id/local-authority/30UE,CDIG-Customer and Digital,External Contractors Charges,4570,Autumn by-pass cleaning schedule 5 Night and 3 day operation.,11/11/2022,0000482932,"6,750.00",Revenue,Kays highways Limited,0
South Ribble Borough Council,http://statistics.data.gov.uk/id/local-authority/30UE,CDIG-Customer and Digital,Materials General,4040,205 litre drum � Dexron 2 oil,25/11/2022,0000483155,528.90,Revenue,LANCASHIRE OILS LTD,0
South Ribble Borough Council,http://statistics.data.gov.uk/id/local-authority/30UE,COMU-Communities,Professional Fees,4510,RESTORE programme,11/11/2022,0000482865,"7,282.00",Revenue,Lancashire Youth Challenge,0
South Ribble Borough Council,http://statistics.data.gov.uk/id/local-authority/30UE,COMU-Communities,Consultancy Fees,4541,Extension of internship - per NAME REDACTED.,04/11/2022,0000482147,"1,600.00",Revenue,Lancaster University,0
South Ribble Borough Council,http://statistics.data.gov.uk/id/local-authority/30UE,GOVE-Governance,L C C General,4530,LAND CHARGES - JULY 2022,11/11/2022,0000482773,762.00,Revenue,LANCS COUNTY COUNCIL,0
South Ribble Borough Council,http://statistics.data.gov.uk/id/local-authority/30UE,GOVE-Governance,L C C General,4530,LAND CHARGES - OCTOBER 2022,18/11/2022,0000483119,"1,034.00",Revenue,LANCS COUNTY COUNCIL,0
South Ribble Borough Council,http://statistics.data.gov.uk/id/local-authority/30UE,CDIG-Customer and Digital,Materials General,4040,1 caliper and brake pads NUMBER PLATE REDACTED,04/11/2022,0000481891,429.17,Revenue,LANCS DAF,0
South Ribble Borough Council,http://statistics.data.gov.uk/id/local-authority/30UE,CDIG-Customer and Digital,Materials General,4040,Exhaust Pipe NUMBER PLATE REDACTED,11/11/2022,0000482760,390.00,Revenue,LANCS DAF,0
South Ribble Borough Council,http://statistics.data.gov.uk/id/local-authority/30UE,CDIG-Customer and Digital,Materials General,4040,"Knox sensor, NUMBER PLATE REDACTED",11/11/2022,0000482866,396.39,Revenue,LANCS DAF,0
South Ribble Borough Council,http://statistics.data.gov.uk/id/local-authority/30UE,CDIG-Customer and Digital,Materials General,4040,Front brake discs Front set of pads NUMBER PLATE REDACTED,18/11/2022,0000483118,430.00,Revenue,LANCS DAF,0
South Ribble Borough Council,http://statistics.data.gov.uk/id/local-authority/30UE,COMP-Commercial and Property,Cap Contract Payment,C230,For the provision of all Design and Construction arising from the Proposed new 2nr x 106.00m x 70m Football 3G Artificial Grass Pitch Including New F,01/11/2022,0000479110,"155,174.89",Revenue,LANO SPORTS NV,0
South Ribble Borough Council,http://statistics.data.gov.uk/id/local-authority/30UE,COMP-Commercial and Property,Cap Contract Payment,C230,For the provision of all Design and Construction arising from the Proposed new 2nr x 106.00m x 70m Football 3G Artificial Grass Pitch Including New F,01/11/2022,0000479593,"361,714.28",Revenue,LANO SPORTS NV,0
South Ribble Borough Council,http://statistics.data.gov.uk/id/local-authority/30UE,COMP-Commercial and Property,Cap Contract Payment,C230,For the provision of all Design and Construction arising from the Proposed new 2nr x 106.00m x 70m Football 3G Artificial Grass Pitch Including New F,01/11/2022,0000480583,"287,962.43",Revenue,LANO SPORTS NV,0
South Ribble Borough Council,http://statistics.data.gov.uk/id/local-authority/30UE,COMP-Commercial and Property,Cap Contract Payment,C230,For the provision of all Design and Construction arising from the Proposed new 2nr x 106.00m x 70m Football 3G Artificial Grass Pitch Including New F,01/11/2022,0000481046,"211,986.79",Revenue,LANO SPORTS NV,0
South Ribble Borough Council,http://statistics.data.gov.uk/id/local-authority/30UE,CDIG-Customer and Digital,Cap Contract Payment,C230,New pay and display tarrif boards,04/11/2022,0000482428,"2,800.00",Revenue,LCC SIGN SHOP,0
South Ribble Borough Council,http://statistics.data.gov.uk/id/local-authority/30UE,CDIG-Customer and Digital,Cap Contract Payment,C230,Carpark signs,11/11/2022,0000482742,"1,451.69",Revenue,LCC SIGN SHOP,0
South Ribble Borough Council,http://statistics.data.gov.uk/id/local-authority/30UE,COMU-Communities,Cap Contract Payment,C230,Leisure Local funds for World Class Coaching meets small town club - weekend camp in Leyland delivered by coach NAME REDACTED,18/11/2022,0000483124,"4,360.00",Revenue,LEYLAND BARRACUDAS ASC,0
South Ribble Borough Council,http://statistics.data.gov.uk/id/local-authority/30UE,COMU-Communities,Materials General,4040,To Supply: 2 x 3ft 1 x 4ft 6 divans & hboard Wooden table & 4 chairs Triple robe & 4 bedsides grey,18/11/2022,0000483095,"1,404.17",Revenue,Leyland Beds and Furniture Ltd,0
South Ribble Borough Council,http://statistics.data.gov.uk/id/local-authority/30UE,COMU-Communities,Cap Contract Payment,C230,Leisure Local Site Improvement phase 1,18/11/2022,0000483073,"117,500.00",Revenue,Leyland Fox Lane and Sports and Social Club,0
South Ribble Borough Council,http://statistics.data.gov.uk/id/local-authority/30UE,CDIG-Customer and Digital,Consultancy Fees,4541,EMPTY HOMES REVIEW SEPT AND OCT 2022,11/11/2022,0000483017,"3,407.76",Revenue,LIBERATA UK LTD,0
South Ribble Borough Council,http://statistics.data.gov.uk/id/local-authority/30UE,CDIG-Customer and Digital,Consultancy Fees,4541,EMPTY HOMES REVIEW SEPT AND OCT 2022,11/11/2022,0000483041,786.41,Revenue,LIBERATA UK LTD,0
South Ribble Borough Council,http://statistics.data.gov.uk/id/local-authority/30UE,COMU-Communities,Cap Contract Payment,C230,Boost Fund Plus Grant,11/11/2022,0000483072,"48,842.00",Revenue,LONGTON VM SPORTS & SOCIAL CLUB,0
South Ribble Borough Council,http://statistics.data.gov.uk/id/local-authority/30UE,CDIG-Customer and Digital,GM Refurbishment,4657,20 Ton of grade 1 Topsoil to be delivered at Worden Park,18/11/2022,0000482961,540.00,Revenue,M C & M A STEWART HAULAGE LTD,0
South Ribble Borough Council,http://statistics.data.gov.uk/id/local-authority/30UE,COMU-Communities,Capital Grant,C570,DFG WORKS FOR LEVEL ACCESS SHOWER AT ADDRESS REDACTED NEW PROGRESS PROPERTY SO 50% OF TOTAL QUOTE TO BE PAID TOTAL QUOTE,11/11/2022,0000482966,"3,175.10",Revenue,MAHONEY CONTRACTORS LTD,0
South Ribble Borough Council,http://statistics.data.gov.uk/id/local-authority/30UE,COMU-Communities,Capital Grant,C570,DFG WORKS FOR LEVEL ACCESS ADDRESS REDACTED.NEW PROGRESS PROPERTY SO 50% OF TOTAL QUOTE TO BE PAID TOTAL QUOTE ,18/11/2022,0000483181,"2,788.08",Revenue,MAHONEY CONTRACTORS LTD,0
South Ribble Borough Council,http://statistics.data.gov.uk/id/local-authority/30UE,COMU-Communities,Capital Grant,C570,DFG WORKS FOR LEVEL PLATFORM WORK AT ADDRESS REDACTED NEW PROGRESS PROPERTY SO 50% OF TOTAL QUOTE TO BE PAID TOTAL QUOTE,18/11/2022,0000483182,"2,554.06",Revenue,MAHONEY CONTRACTORS LTD,0
South Ribble Borough Council,http://statistics.data.gov.uk/id/local-authority/30UE,POLY-Policy,Short Course,1402,CSCS & Health & Safety Training -NAME REDACTED,04/11/2022,0000482658,376.00,Revenue,Manchester Plant Training Ltd,0
South Ribble Borough Council,http://statistics.data.gov.uk/id/local-authority/30UE,COMU-Communities,Publicity & Promotion,4842,"To provide plants as prizes for an event on 20 October, 25 plants. To be delivered by 5.30pm.",11/11/2022,0000482732,375.00,Revenue,Marshall Smalley,0
South Ribble Borough Council,http://statistics.data.gov.uk/id/local-authority/30UE,COMU-Communities,Capital Grant,C570,DFG WORK FOR RAMP AND DOOR ADAPTATION  AT ADDRESS REDACTED AS PER SRBC PLANS AND QUOTE SUPPLIED OF ACENT PROPERTY SO 50% COST COVERED UNDER DFG,11/11/2022,0000482968,"2,265.00",Revenue,Martin Collins Joinery and Glazing Limited,0
South Ribble Borough Council,http://statistics.data.gov.uk/id/local-authority/30UE,COMP-Commercial and Property,Reactive Repair & Maintenance,2020,Worden Park Glass Shop - Renew led to Chimney / Spray Thomson water seal to chimney.,11/11/2022,0000482899,"1,100.00",Revenue,Mick Bamber,0
South Ribble Borough Council,http://statistics.data.gov.uk/id/local-authority/30UE,CDIG-Customer and Digital,External Contractors Charges,4570,Vehicle Recovery NUMBER PLATE REDACTED Cow Well Lane / Chorley Old Road Whittle le Woods,11/11/2022,0000482593,359.96,Revenue,MILLERS OF LONGTON LTD,0
South Ribble Borough Council,http://statistics.data.gov.uk/id/local-authority/30UE,CDIG-Customer and Digital,Kennelling Fees,4521,Provision of Stray Dog Service June 2022,11/11/2022,0000482959,369.29,Revenue,MORNINGSIDE KENNELS,0
South Ribble Borough Council,http://statistics.data.gov.uk/id/local-authority/30UE,CDIG-Customer and Digital,Kennelling Fees,4521,Provision of Stray Dog Service April 2022,11/11/2022,0000482960,256.30,Revenue,MORNINGSIDE KENNELS,0
South Ribble Borough Council,http://statistics.data.gov.uk/id/local-authority/30UE,CDIG-Customer and Digital,Kennelling Fees,4521,Provision of Stray Dog Service May 2022,11/11/2022,0000482962,290.90,Revenue,MORNINGSIDE KENNELS,0
South Ribble Borough Council,http://statistics.data.gov.uk/id/local-authority/30UE,CDIG-Customer and Digital,Kennelling Fees,4521,Provision of stray dog service July 2022,11/11/2022,0000482970,650.36,Revenue,MORNINGSIDE KENNELS,0
South Ribble Borough Council,http://statistics.data.gov.uk/id/local-authority/30UE,CDIG-Customer and Digital,Kennelling Fees,4521,Provision of stray dog service August 2022,11/11/2022,0000482972,335.18,Revenue,MORNINGSIDE KENNELS,0
South Ribble Borough Council,http://statistics.data.gov.uk/id/local-authority/30UE,CDIG-Customer and Digital,Kennelling Fees,4521,Provision of stray dog service September 2022,11/11/2022,0000482974,288.09,Revenue,MORNINGSIDE KENNELS,0
South Ribble Borough Council,http://statistics.data.gov.uk/id/local-authority/30UE,CDIG-Customer and Digital,Operational Equip & Tools,4010,Compressor Service Parts,11/11/2022,0000482795,285.37,Revenue,MRB Workshop Services Ltd,0
South Ribble Borough Council,http://statistics.data.gov.uk/id/local-authority/30UE,PDEV-Planning and Development,Advertising,4841,Publication of planning publicity press notices in the LEP - April 2022 to March 2023,25/11/2022,0000483013,972.00,Revenue,National World Publishing Limited,0
South Ribble Borough Council,http://statistics.data.gov.uk/id/local-authority/30UE,PDEV-Planning and Development,Advertising,4841,Publication of planning publicity press notices in the LEP - April 2022 to March 2023,25/11/2022,0000483042,891.00,Revenue,National World Publishing Limited,0
South Ribble Borough Council,http://statistics.data.gov.uk/id/local-authority/30UE,PDEV-Planning and Development,Advertising,4841,Publication of planning publicity press notices in the LEP - April 2022 to March 2023,25/11/2022,0000483058,729.00,Revenue,National World Publishing Limited,0
South Ribble Borough Council,http://statistics.data.gov.uk/id/local-authority/30UE,PDEV-Planning and Development,Advertising,4841,Publication of planning publicity press notices in the LEP - April 2022 to March 2023,25/11/2022,0000483059,891.00,Revenue,National World Publishing Limited,0
South Ribble Borough Council,http://statistics.data.gov.uk/id/local-authority/30UE,PDEV-Planning and Development,Advertising,4841,Publication of planning publicity press notices in the LEP - April 2022 to March 2023,25/11/2022,0000483060,729.00,Revenue,National World Publishing Limited,0
South Ribble Borough Council,http://statistics.data.gov.uk/id/local-authority/30UE,CDIG-Customer and Digital,Technical Support,4246,Support & Maintenance Services - NEC Document Management:200 x All Customers GDPR Connect COLD eMail Connect Graphical Workflow Case Manager / VF ETD,25/11/2022,0000483219,"4,495.00",Revenue,NEC Software Solutions UK Ltd,0
South Ribble Borough Council,http://statistics.data.gov.uk/id/local-authority/30UE,COMU-Communities,Core Fund,4861,Leyland and Farington in Bloom gardening competition winner vouchers 2022 . National Gardening Vouchers.,11/11/2022,0000482697,208.33,Revenue,NEWGATE NURSERIES,0
South Ribble Borough Council,http://statistics.data.gov.uk/id/local-authority/30UE,COMU-Communities,Core Fund,4861,National Gardening gift vouchers,11/11/2022,0000482697,158.33,Revenue,NEWGATE NURSERIES,0
South Ribble Borough Council,http://statistics.data.gov.uk/id/local-authority/30UE,COMU-Communities,Core Fund,4861,National Gardening Gift Vouchers. vouchers for Eastern area.,11/11/2022,0000482697,62.50,Revenue,NEWGATE NURSERIES,0
South Ribble Borough Council,http://statistics.data.gov.uk/id/local-authority/30UE,COMU-Communities,Core Fund,4861,"National Gardening Vouchers for Penwortham in Bloom, for all winners.",11/11/2022,0000482697,291.67,Revenue,NEWGATE NURSERIES,0
South Ribble Borough Council,http://statistics.data.gov.uk/id/local-authority/30UE,COMU-Communities,Core Fund,4861,National Gardening vouchers for BB LH WLD in Bloom,11/11/2022,0000482697,137.50,Revenue,NEWGATE NURSERIES,0
South Ribble Borough Council,http://statistics.data.gov.uk/id/local-authority/30UE,COMU-Communities,Core Fund,4861,Further National Gardening Vouchers for Eastern area,11/11/2022,0000482697,87.50,Revenue,NEWGATE NURSERIES,0
South Ribble Borough Council,http://statistics.data.gov.uk/id/local-authority/30UE,COMU-Communities,Miscellaneous Expenses,4851,Extra gardening vouchers for In Bloom competition,11/11/2022,0000482697,45.83,Revenue,NEWGATE NURSERIES,0
South Ribble Borough Council,http://statistics.data.gov.uk/id/local-authority/30UE,PDEV-Planning and Development,Consultancy Fees,4541,Cuerden - Retail Advice,25/11/2022,0000483057,"3,825.00",Revenue,Nexus Planning,0
South Ribble Borough Council,http://statistics.data.gov.uk/id/local-authority/30UE,GOVE-Governance,Members Training,1406,Scrutiny Committee Training: Questioning Techniques - 31 October 2022,18/11/2022,0000482947,600.00,Revenue,NORTH WEST EMPLOYERS,0
South Ribble Borough Council,http://statistics.data.gov.uk/id/local-authority/30UE,COMP-Commercial and Property,Reactive Repair & Maintenance,2020,"South Ribble Council, Worden Park Leyland as per NAME REDACTED request 15.09.2022 Quotation Number 1457   1. 2x 10m floats	2. Float Bracket	3. Travel",18/11/2022,0000482975,580.00,Revenue,NORTH WEST MAINTENANCE SERVICES LTD,0
South Ribble Borough Council,http://statistics.data.gov.uk/id/local-authority/30UE,COMP-Commercial and Property,Planned Annual Repair & Maintenance,2021,"For option 2, with the �Extra over, male locker room�, also, the lockers for female locker room (Please see quote for the exact details).Quote dated ",25/11/2022,0000482971,"9,257.00",Revenue,Northern Storage & Interiors Ltd,0
South Ribble Borough Council,http://statistics.data.gov.uk/id/local-authority/30UE,COMP-Commercial and Property,Electricity,2303,Invoices to be moved to separate supplier account for individual sites - See notes on supplier account,25/11/2022,0000483265,"2,046.14",Revenue,NPOWER A0007226045 - Leyland Market,0
South Ribble Borough Council,http://statistics.data.gov.uk/id/local-authority/30UE,COMP-Commercial and Property,Electricity,2303,Invoices to be moved to separate supplier account for individual sites - See notes on supplier account,25/11/2022,0000483266,"2,033.39",Revenue,NPOWER A0007226045 - Leyland Market,0
South Ribble Borough Council,http://statistics.data.gov.uk/id/local-authority/30UE,COMP-Commercial and Property,Electricity,2303,Invoices to be moved to separate supplier account for individual sites - See notes on supplier account,25/11/2022,0000483267,"2,062.41",Revenue,NPOWER A0007226045 - Leyland Market,0
South Ribble Borough Council,http://statistics.data.gov.uk/id/local-authority/30UE,COMP-Commercial and Property,Electricity,2303,Invoices to be moved to separate supplier account for individual sites - See notes on supplier account,25/11/2022,0000483268,"2,039.63",Revenue,NPOWER A0007226045 - Leyland Market,0
South Ribble Borough Council,http://statistics.data.gov.uk/id/local-authority/30UE,COMP-Commercial and Property,Electricity,2303,Invoices to be moved to separate supplier account for individual sites - See notes on supplier account,25/11/2022,0000483269,"2,164.36",Revenue,NPOWER A0007226045 - Leyland Market,0
South Ribble Borough Council,http://statistics.data.gov.uk/id/local-authority/30UE,COMP-Commercial and Property,Electricity,2303,Invoices to be moved to separate supplier account for individual sites - See notes on supplier account,25/11/2022,0000483270,"2,174.08",Revenue,NPOWER A0007226045 - Leyland Market,0
South Ribble Borough Council,http://statistics.data.gov.uk/id/local-authority/30UE,COMP-Commercial and Property,Electricity,2303,Invoices to be moved to separate supplier account for individual sites - See notes on supplier account,25/11/2022,0000483271,"2,185.66",Revenue,NPOWER A0007226045 - Leyland Market,0
South Ribble Borough Council,http://statistics.data.gov.uk/id/local-authority/30UE,COMP-Commercial and Property,Electricity,2303,Invoices to be moved to separate supplier account for individual sites - See notes on supplier account,25/11/2022,0000483272,"1,978.95",Revenue,NPOWER A0007226045 - Leyland Market,0
South Ribble Borough Council,http://statistics.data.gov.uk/id/local-authority/30UE,COMP-Commercial and Property,Electricity,2303,Invoices to be moved to separate supplier account for individual sites - See notes on supplier account,25/11/2022,0000483273,"1,898.75",Revenue,NPOWER A0007226045 - Leyland Market,0
South Ribble Borough Council,http://statistics.data.gov.uk/id/local-authority/30UE,COMP-Commercial and Property,Electricity,2303,Invoices to be moved to separate supplier account for individual sites - See notes on supplier account,25/11/2022,0000483274,"2,110.35",Revenue,NPOWER A0007226045 - Leyland Market,0
South Ribble Borough Council,http://statistics.data.gov.uk/id/local-authority/30UE,COMP-Commercial and Property,Electricity,2303,Invoices to be moved to separate supplier account for individual sites - See notes on supplier account,25/11/2022,0000483275,"2,081.71",Revenue,NPOWER A0007226045 - Leyland Market,0
South Ribble Borough Council,http://statistics.data.gov.uk/id/local-authority/30UE,COMP-Commercial and Property,Electricity,2303,Invoices to be moved to separate supplier account for individual sites - See notes on supplier account,25/11/2022,0000483280,"1,241.19",Revenue,NPOWER A0010287906 - BB Leisure Centre Pavillion,0
South Ribble Borough Council,http://statistics.data.gov.uk/id/local-authority/30UE,COMP-Commercial and Property,Electricity,2303,Invoices to be moved to separate supplier account for individual sites - See notes on supplier account,25/11/2022,0000483281,292.28,Revenue,NPOWER A0010287906 - BB Leisure Centre Pavillion,0
South Ribble Borough Council,http://statistics.data.gov.uk/id/local-authority/30UE,CDIG-Customer and Digital,Parking Attendants,4514,Variable Fee Car Park Enforcement November 2022 - Variable Recharge Items,18/11/2022,0000483106,"2,187.90",Revenue,NSL LTD,0
South Ribble Borough Council,http://statistics.data.gov.uk/id/local-authority/30UE,CDIG-Customer and Digital,Cash Collection Charges Car Parks,4855,Variable Fee Car Park Enforcement November 2022 - Fixed Recharge Items,18/11/2022,0000483106,96.72,Revenue,NSL LTD,0
South Ribble Borough Council,http://statistics.data.gov.uk/id/local-authority/30UE,COMP-Commercial and Property,Consultancy Fees,4541,The undertaking of Phase one and Phase two of the dilapidations report at Forward Industrial Estate.,25/11/2022,0000481910,"3,027.90",Revenue,NSW Commercial Ltd,0
South Ribble Borough Council,http://statistics.data.gov.uk/id/local-authority/30UE,COMU-Communities,Materials General,4040,Rent due for ADDRESS REDACTED - Prior to arrival of Family,18/11/2022,0000481688,886.15,Revenue,Onward Homes Ltd,0
South Ribble Borough Council,http://statistics.data.gov.uk/id/local-authority/30UE,CDIG-Customer and Digital,Cash Collection Charges Car Parks,4855,RingGo Fee Transactions - November 2022,18/11/2022,0000483101,113.95,Revenue,Park Now Limited,0
South Ribble Borough Council,http://statistics.data.gov.uk/id/local-authority/30UE,CDIG-Customer and Digital,Cash Collection Charges Car Parks,4855,"RingGo Text Summary, Reminder & Processing Fees - November 2022",18/11/2022,0000483101,216.70,Revenue,Park Now Limited,0
South Ribble Borough Council,http://statistics.data.gov.uk/id/local-authority/30UE,COMP-Commercial and Property,Consumable Clng Materials,2711,"AA201	JANGRO MICRO MINI TOILET ROLL 100M X 90MM 2 PLY (24), RECYCLED 10",04/11/2022,0000482595,117.00,Revenue,Pattersons (Bristol) Ltd,0
South Ribble Borough Council,http://statistics.data.gov.uk/id/local-authority/30UE,COMP-Commercial and Property,Consumable Clng Materials,2711,"AE233	JANGRO GREEN S/V FOLD HAND TOWEL 1PLY  (25X21CM), 3600 PER CASE, 8",04/11/2022,0000482595,49.98,Revenue,Pattersons (Bristol) Ltd,0
South Ribble Borough Council,http://statistics.data.gov.uk/id/local-authority/30UE,COMP-Commercial and Property,Consumable Clng Materials,2711,"BA020-75	JANGRO MULTI-SURFACE POLISH, HIGH QUALITY LIQUID SPRAY POLISH & CLEANER, CONTAINS ANTI-STATIC PROPERTIES & IS IDEAL FOR COMPUTER AREAS & VDU",04/11/2022,0000482595,19.32,Revenue,Pattersons (Bristol) Ltd,0
South Ribble Borough Council,http://statistics.data.gov.uk/id/local-authority/30UE,COMP-Commercial and Property,Consumable Clng Materials,2711,"BD075-5	JANGRO SAFETY FLOOR DISINFECTANT CLEANER 5LTR 1 box (2 bottles)",04/11/2022,0000482595,6.10,Revenue,Pattersons (Bristol) Ltd,0
South Ribble Borough Council,http://statistics.data.gov.uk/id/local-authority/30UE,COMP-Commercial and Property,Consumable Clng Materials,2711,"BA028-75	JANGRO GLASS & MIRROR CLEANER 750ML 6 ",04/11/2022,0000482595,7.20,Revenue,Pattersons (Bristol) Ltd,0
South Ribble Borough Council,http://statistics.data.gov.uk/id/local-authority/30UE,COMP-Commercial and Property,Consumable Clng Materials,2711,"BG030-SF	GIANT AEROSOL AIR FRESHENER 750ML SUMMER BLAST 1 Box (6 cans) ",04/11/2022,0000482595,16.26,Revenue,Pattersons (Bristol) Ltd,0
South Ribble Borough Council,http://statistics.data.gov.uk/id/local-authority/30UE,COMP-Commercial and Property,Consumable Clng Materials,2711,"BA048-5	JANGRO CLEANER DISINFECTANT CONCENTRATE 5LTR, MULTI PURPOSE DETERGENT, DISINFECTANT & DEODORISER WHICH WILL CLEAN AND KILL BACTERIA IN ONE AP",04/11/2022,0000482595,21.32,Revenue,Pattersons (Bristol) Ltd,0
South Ribble Borough Council,http://statistics.data.gov.uk/id/local-authority/30UE,COMP-Commercial and Property,Consumable Clng Materials,2711,"BB034-5	JANGRO CONCENTRATED FRAGRANCED GREEN DETERGENT IDEAL FOR MANUAL DISHWASHING & AS A GENERAL HARD SURFACE CLEANER, 20% 5LTR 4 ",04/11/2022,0000482595,14.04,Revenue,Pattersons (Bristol) Ltd,0
South Ribble Borough Council,http://statistics.data.gov.uk/id/local-authority/30UE,COMP-Commercial and Property,Consumable Clng Materials,2711,BC015-7 JANGRO THICKENED BLEACH DETERGENT 750ML 24 ,04/11/2022,0000482595,12.00,Revenue,Pattersons (Bristol) Ltd,0
South Ribble Borough Council,http://statistics.data.gov.uk/id/local-authority/30UE,COMP-Commercial and Property,Consumable Clng Materials,2711,BC045-1 JANGRO PERFUMED MULTI SURFACE TOILET & WASHROOM CLEANER DESCALER 1 LTR24,04/11/2022,0000482595,23.04,Revenue,Pattersons (Bristol) Ltd,0
South Ribble Borough Council,http://statistics.data.gov.uk/id/local-authority/30UE,COMP-Commercial and Property,Consumable Clng Materials,2711,"BD041-5	JANGRO LEMON MULTI SURFACE FLOOR GEL 2",04/11/2022,0000482595,8.10,Revenue,Pattersons (Bristol) Ltd,0
South Ribble Borough Council,http://statistics.data.gov.uk/id/local-authority/30UE,COMP-Commercial and Property,Consumable Clng Materials,2711,"BK101-50	JANGRO PINK PEARLISED HAND SOAP 500ML8",04/11/2022,0000482595,9.92,Revenue,Pattersons (Bristol) Ltd,0
South Ribble Borough Council,http://statistics.data.gov.uk/id/local-authority/30UE,COMP-Commercial and Property,Consumable Clng Materials,2711,"BK104-5	JANGRO HAND SOAP UNPERFUMED 5LTR4 ",04/11/2022,0000482595,19.64,Revenue,Pattersons (Bristol) Ltd,0
South Ribble Borough Council,http://statistics.data.gov.uk/id/local-authority/30UE,COMP-Commercial and Property,Consumable Clng Materials,2711,"CG106-B	EXEL MICROFIBRE SUPER CLOTH 40X 40CM BLUE (10)1",04/11/2022,0000482595,2.70,Revenue,Pattersons (Bristol) Ltd,0
South Ribble Borough Council,http://statistics.data.gov.uk/id/local-authority/30UE,COMP-Commercial and Property,Consumable Clng Materials,2711,"CG106-P	EXEL MICROFIBRE SUPER CLOTH 40X 40CM PINK (10)1",04/11/2022,0000482595,2.70,Revenue,Pattersons (Bristol) Ltd,0
South Ribble Borough Council,http://statistics.data.gov.uk/id/local-authority/30UE,COMP-Commercial and Property,Consumable Clng Materials,2711,"CM140-39	JANGRO REFUSE SACKS 18X29X39 140G MEDIUM DUTY BLACK (200)3",04/11/2022,0000482595,22.92,Revenue,Pattersons (Bristol) Ltd,0
South Ribble Borough Council,http://statistics.data.gov.uk/id/local-authority/30UE,COMP-Commercial and Property,Consumable Clng Materials,2711,"HA015-G	EXEL PY MOP HEAD 250 GRM,  COLOUR CODED - GREEN15",04/11/2022,0000482595,11.55,Revenue,Pattersons (Bristol) Ltd,0
South Ribble Borough Council,http://statistics.data.gov.uk/id/local-authority/30UE,COMP-Commercial and Property,Consumable Clng Materials,2711,"HL006	JANGRO ABRASIVE EASIGRIP FOAMBACK SPONGE SCOURING PAD, YELLOW/GREEN (10)1",04/11/2022,0000482595,1.20,Revenue,Pattersons (Bristol) Ltd,0
South Ribble Borough Council,http://statistics.data.gov.uk/id/local-authority/30UE,COMP-Commercial and Property,Consumable Clng Materials,2711,"HN204	JANGRO OPEN TOILET BRUSH SET 44CM WHITE10",04/11/2022,0000482595,9.20,Revenue,Pattersons (Bristol) Ltd,0
South Ribble Borough Council,http://statistics.data.gov.uk/id/local-authority/30UE,COMP-Commercial and Property,Consumable Clng Materials,2711,"BN042-10	DEB STOKDERM PROTECT PURE CREAM 100ML10",04/11/2022,0000482595,1.82,Revenue,Pattersons (Bristol) Ltd,0
South Ribble Borough Council,http://statistics.data.gov.uk/id/local-authority/30UE,COMP-Commercial and Property,Consumable Clng Materials,2711,"FA351	SEBO 3 LAYER VACUUM BAGS FOR FELIX/DART VACUUM CLEANERS, PACK OF 101 ",04/11/2022,0000482595,7.65,Revenue,Pattersons (Bristol) Ltd,0
South Ribble Borough Council,http://statistics.data.gov.uk/id/local-authority/30UE,CDIG-Customer and Digital,Clothing and Uniforms,4410,DISPOSABLE GLOVES NITRILE (BOX- 100) LARGE-DG150-L,18/11/2022,0000482933,222.00,Revenue,Pattersons (Bristol) Ltd,0
South Ribble Borough Council,http://statistics.data.gov.uk/id/local-authority/30UE,CDIG-Customer and Digital,Materials General,4040,GENERAL PURPOSE DISINFECTANT  5 LTR-BC017 - 5,18/11/2022,0000482933,25.08,Revenue,Pattersons (Bristol) Ltd,0
South Ribble Borough Council,http://statistics.data.gov.uk/id/local-authority/30UE,CDIG-Customer and Digital,Materials General,4040,LEMON FLOOR GEL-BD041 -5,18/11/2022,0000482933,32.40,Revenue,Pattersons (Bristol) Ltd,0
South Ribble Borough Council,http://statistics.data.gov.uk/id/local-authority/30UE,CDIG-Customer and Digital,Materials General,4040,1005009 - JANGRO CONCENTRATED CLEANER DISINFECTANT-BA048-5,18/11/2022,0000482933,42.64,Revenue,Pattersons (Bristol) Ltd,0
South Ribble Borough Council,http://statistics.data.gov.uk/id/local-authority/30UE,CDIG-Customer and Digital,Materials General,4040,AIR FRESHENER - FRESH LINEN 400ml-BG040 - FL,18/11/2022,0000482933,10.56,Revenue,Pattersons (Bristol) Ltd,0
South Ribble Borough Council,http://statistics.data.gov.uk/id/local-authority/30UE,POLY-Policy,Professional Fees,4510,Photography cover at events in 2022/23,11/11/2022,0000482069,250.00,Revenue,PAUL HEYES PHOTOGRAPHY LTD,0
South Ribble Borough Council,http://statistics.data.gov.uk/id/local-authority/30UE,POLY-Policy,Occupational Health,1408,"PROVISION OF WELLBEING, TELEPHONE CONSULTATIONS AND COUNSELLING FROM MAY JUNE 2022",04/11/2022,0000482416,259.50,Revenue,People Asset Management,0
South Ribble Borough Council,http://statistics.data.gov.uk/id/local-authority/30UE,POLY-Policy,Occupational Health,1408,Occupational Health Charges August 2022 - Invoice 118011,04/11/2022,0000482532,509.75,Revenue,People Asset Management,0
South Ribble Borough Council,http://statistics.data.gov.uk/id/local-authority/30UE,POLY-Policy,Occupational Health,1408,2 paper screen,04/11/2022,0000482532,24.00,Revenue,People Asset Management,0
South Ribble Borough Council,http://statistics.data.gov.uk/id/local-authority/30UE,PDEV-Planning and Development,Disclosure Barring,4522,gov fee,25/11/2022,0000483112,646.00,Revenue,Personnel Checks,0
South Ribble Borough Council,http://statistics.data.gov.uk/id/local-authority/30UE,PDEV-Planning and Development,Disclosure Barring,4522,admin fee,25/11/2022,0000483112,226.61,Revenue,Personnel Checks,0
South Ribble Borough Council,http://statistics.data.gov.uk/id/local-authority/30UE,CDIG-Customer and Digital,Technical Support,4246,SharePoint work as detailed in ROM,18/11/2022,0000483019,"11,500.00",Revenue,PHOENIX SOFTWARE LTD,0
South Ribble Borough Council,http://statistics.data.gov.uk/id/local-authority/30UE,COMP-Commercial and Property,Rental,4012,2022 / 2023 annual contract for the provision of sanitary services to the Civic Centre as per your ref 105796to include duty of care Sept,18/11/2022,0000482963,"1,219.99",Revenue,PHS GROUP PLC,0
South Ribble Borough Council,http://statistics.data.gov.uk/id/local-authority/30UE,COMP-Commercial and Property,Rental,4012,2022 / 2023 annual contract for the provision of sanitary services to ADDRESS REDACTED as per your ref 105797,11/11/2022,0000482967,413.76,Revenue,PHS GROUP PLC,0
South Ribble Borough Council,http://statistics.data.gov.uk/id/local-authority/30UE,PDEV-Planning and Development,Economic Regeneration,485A,Data source  To include the following areas: �            Leyland �            Lostock Hall �            Bamber Bridge �            Walton le Dale � ,25/11/2022,0000483083,"8,700.00",Revenue,Place Informatics Ltd,0
South Ribble Borough Council,http://statistics.data.gov.uk/id/local-authority/30UE,PDEV-Planning and Development,Agency Staff,1121,Enforcement consultancy services,18/11/2022,0000482724,"1,881.00",Revenue,Planning Control & PACE Solutions,0
South Ribble Borough Council,http://statistics.data.gov.uk/id/local-authority/30UE,PDEV-Planning and Development,Agency Staff,1121,postage,18/11/2022,0000482724,38.25,Revenue,Planning Control & PACE Solutions,0
South Ribble Borough Council,http://statistics.data.gov.uk/id/local-authority/30UE,PDEV-Planning and Development,Refunded Income,485R,refund plan app penwortham girls cop lane,11/11/2022,0000482607,462.00,Revenue,Planning Portal,0
South Ribble Borough Council,http://statistics.data.gov.uk/id/local-authority/30UE,PDEV-Planning and Development,Refunded Income,485R,howick cross,11/11/2022,0000482608,462.00,Revenue,Planning Portal,0
South Ribble Borough Council,http://statistics.data.gov.uk/id/local-authority/30UE,Revenues Plus,Contributions to Other Bodies,4730,accomodations,01/11/2022,0000480153,358.74,Revenue,Premier Inn Business Account,0
South Ribble Borough Council,http://statistics.data.gov.uk/id/local-authority/30UE,CDIG-Customer and Digital,Materials General,4040,Pursan Hand Cleanser 500ml 417054,11/11/2022,0000482981,474.60,Revenue,PREMIER OFFICE SUPPLES (UK) LTD,0
South Ribble Borough Council,http://statistics.data.gov.uk/id/local-authority/30UE,CDIG-Customer and Digital,Paper Bulk,4133,Ongoing  paper supplies,18/11/2022,0000482780,548.13,Revenue,PREMIER PAPER GROUP LTD,0
South Ribble Borough Council,http://statistics.data.gov.uk/id/local-authority/30UE,COMU-Communities,Publicity & Promotion,4842,To print 200 copies of the Longton Live schedule,04/11/2022,0000482660,330.00,Revenue,Preston City Council,0
South Ribble Borough Council,http://statistics.data.gov.uk/id/local-authority/30UE,PDEV-Planning and Development,Professional Fees,4510,Invoice to match CN006096,11/11/2022,0000482666,"3,556.00",Revenue,Preston City Council,0
South Ribble Borough Council,http://statistics.data.gov.uk/id/local-authority/30UE,COMU-Communities,Core Fund,4861,To print 4100 A4 8 page booklet as per quote 4094a. To deliver to Civic Centre by Wednesday 10th August.,04/11/2022,0000482695,710.00,Revenue,Preston City Council,0
South Ribble Borough Council,http://statistics.data.gov.uk/id/local-authority/30UE,GOVE-Governance,Contract Printing,4127,PRINTING OF STAGE 4 CANVASS COMMUNICATIONS AND ENVELOPES (IN LINE WITH D ON ORDER ACKNOWLEDGEMENT 9582),25/11/2022,0000483255,"1,073.73",Revenue,PRINT IMAGE NETWORK LTD,0
South Ribble Borough Council,http://statistics.data.gov.uk/id/local-authority/30UE,PDEV-Planning and Development,Economic Regeneration,485A,Development hours for website update 32 hours,04/11/2022,0000482075,"1,024.00",Revenue,PROTEAN SYSTEMS LIMITED,0
South Ribble Borough Council,http://statistics.data.gov.uk/id/local-authority/30UE,COMP-Commercial and Property,Reactive Repair & Maintenance,2020,Put in place any appropriate signage or barriers to prevent any unauthorised person to enter area. To Replace Double Glazed unit as required using Sa,04/11/2022,0000482668,250.00,Revenue,PSR & Sons Joiners & Building Contractors,0
South Ribble Borough Council,http://statistics.data.gov.uk/id/local-authority/30UE,COMP-Commercial and Property,Reactive Repair & Maintenance,2020,LABOUR,04/11/2022,0000482668,10.00,Revenue,PSR & Sons Joiners & Building Contractors,0
South Ribble Borough Council,http://statistics.data.gov.uk/id/local-authority/30UE,COMP-Commercial and Property,Reactive Repair & Maintenance,2020,"To supply and fit a new fire door, with vision panel, to the property services office, 2nd floor civic centre. as per NAME REDACTED request",18/11/2022,0000482944,550.00,Revenue,PSR & Sons Joiners & Building Contractors,0
South Ribble Borough Council,http://statistics.data.gov.uk/id/local-authority/30UE,COMP-Commercial and Property,Reactive Repair & Maintenance,2020,labour,18/11/2022,0000482944,100.00,Revenue,PSR & Sons Joiners & Building Contractors,0
South Ribble Borough Council,http://statistics.data.gov.uk/id/local-authority/30UE,COMP-Commercial and Property,Reactive Repair & Maintenance,2020,"To fit approximately 15 window restrictors, following depot/waste staff not taking advice and removing the factory fit window restrictors. As per NAM",11/11/2022,0000483006,490.00,Revenue,PSR & Sons Joiners & Building Contractors,0
South Ribble Borough Council,http://statistics.data.gov.uk/id/local-authority/30UE,COMP-Commercial and Property,Reactive Repair & Maintenance,2020,LABOUR,11/11/2022,0000483006,100.00,Revenue,PSR & Sons Joiners & Building Contractors,0
South Ribble Borough Council,http://statistics.data.gov.uk/id/local-authority/30UE,COMP-Commercial and Property,Reactive Repair & Maintenance,2020,To attend Penwortham Holme and board up the first-floor boiler room doors first thing Tuesday as per NAME REDACTED request 18mm ply board x 2 with se,11/11/2022,0000483054,300.00,Revenue,PSR & Sons Joiners & Building Contractors,0
South Ribble Borough Council,http://statistics.data.gov.uk/id/local-authority/30UE,COMP-Commercial and Property,Reactive Repair & Maintenance,2020,LABOUR,11/11/2022,0000483054,50.00,Revenue,PSR & Sons Joiners & Building Contractors,0
South Ribble Borough Council,http://statistics.data.gov.uk/id/local-authority/30UE,COMU-Communities,Temporary Accommodation,5311,B&B accommodation for 18 individuals..........MA � double room  31 nights � BA � double room  31 nights �BH � double room  18 nights �CBW � family,11/11/2022,0000482830,"21,209.25",Revenue,Purpleroomz,0
South Ribble Borough Council,http://statistics.data.gov.uk/id/local-authority/30UE,COMU-Communities,Materials General,4040,Emergency Refugee Accommodation,11/11/2022,0000482941,"1,440.00",Revenue,Purpleroomz,0
South Ribble Borough Council,http://statistics.data.gov.uk/id/local-authority/30UE,COMU-Communities,Temporary Accommodation,5311,Homeless individuals placed at Purple Roomz hotel in Bamber Bridge at the end of October 2022  NAME REDACTED � double room � one night  25.10.22 to 26.10.22 NAME REDACTED,11/11/2022,0000483053,632.50,Revenue,Purpleroomz,0
South Ribble Borough Council,http://statistics.data.gov.uk/id/local-authority/30UE,COMU-Communities,Temporary Accommodation,5311,Payment now due for hotel guests (homeless cases) placed at the Purple Roomz hotel in Bamber Bridge (PR5 6BA) during the month of November 2022.HOTEL,25/11/2022,0000483258,"25,531.50",Revenue,Purpleroomz,0
South Ribble Borough Council,http://statistics.data.gov.uk/id/local-authority/30UE,GOVE-Governance,Consultancy Fees,4541,Health & Satey Consultancy - 19th September to 17th Feb 2023,11/11/2022,0000482597,"1,080.00",Revenue,QHS SOLUTIONS,0
South Ribble Borough Council,http://statistics.data.gov.uk/id/local-authority/30UE,GOVE-Governance,Consultancy Fees,4541,Health & Satey Consultancy - 19th September to 17th Feb 2023,11/11/2022,0000482940,"1,080.00",Revenue,QHS SOLUTIONS,0
South Ribble Borough Council,http://statistics.data.gov.uk/id/local-authority/30UE,CDIG-Customer and Digital,Computer Maintenance,4211,System rental and Communications Charge - 60 vehicles for 3 months 1.10.22 - 31.12.22,18/11/2022,0000482236,"2,070.00",Revenue,Quartix,0
South Ribble Borough Council,http://statistics.data.gov.uk/id/local-authority/30UE,CDIG-Customer and Digital,Cap Contract Payment,C230,Hire of 2T Excavator for 4 weeks,25/11/2022,0000482936,240.00,Revenue,Readyplant Limited,0
South Ribble Borough Council,http://statistics.data.gov.uk/id/local-authority/30UE,CDIG-Customer and Digital,Cap Contract Payment,C230,Hire of 2T Dumper for 4 weeks,25/11/2022,0000482936,144.00,Revenue,Readyplant Limited,0
South Ribble Borough Council,http://statistics.data.gov.uk/id/local-authority/30UE,CDIG-Customer and Digital,Cap Contract Payment,C230,Delivery and Pick up to Hurst Grange Hill Rd Penwortham,25/11/2022,0000482936,60.00,Revenue,Readyplant Limited,0
South Ribble Borough Council,http://statistics.data.gov.uk/id/local-authority/30UE,COMP-Commercial and Property,Planned Annual Repair & Maintenance,2021,Hurst Grange 2022/2023 4 visits,11/11/2022,0000482927,180.00,Revenue,RED ROSE BUILDING MAINTENANCE,0
South Ribble Borough Council,http://statistics.data.gov.uk/id/local-authority/30UE,COMP-Commercial and Property,Planned Annual Repair & Maintenance,2021,LABOUR,11/11/2022,0000482927,100.00,Revenue,RED ROSE BUILDING MAINTENANCE,0
South Ribble Borough Council,http://statistics.data.gov.uk/id/local-authority/30UE,COMP-Commercial and Property,Reactive Repair & Maintenance,2020,"Worden Park, replacing approximately 35ft of lead pipe following several leaks to alkathene plastic, in line with current British standards. From the",11/11/2022,0000482928,"2,000.00",Revenue,RED ROSE BUILDING MAINTENANCE,0
South Ribble Borough Council,http://statistics.data.gov.uk/id/local-authority/30UE,COMP-Commercial and Property,Reactive Repair & Maintenance,2020,MATERIALS,11/11/2022,0000482928,"1,500.00",Revenue,RED ROSE BUILDING MAINTENANCE,0
South Ribble Borough Council,http://statistics.data.gov.uk/id/local-authority/30UE,COMP-Commercial and Property,Reactive Repair & Maintenance,2020,Quotation to supply labour to remove air conditioning fencing on the roof to also remove suspended wooden flooring that�s inside the compound.  Addit,25/11/2022,0000483147,350.00,Revenue,RED ROSE BUILDING MAINTENANCE,0
South Ribble Borough Council,http://statistics.data.gov.uk/id/local-authority/30UE,COMP-Commercial and Property,Reactive Repair & Maintenance,2020,LABOUR,25/11/2022,0000483147,300.00,Revenue,RED ROSE BUILDING MAINTENANCE,0
South Ribble Borough Council,http://statistics.data.gov.uk/id/local-authority/30UE,CDIG-Customer and Digital,Materials General,4040,Proxy Switch (979944A) - G008,11/11/2022,0000482548,99.86,Revenue,Refuse Vehicle Parts,0
South Ribble Borough Council,http://statistics.data.gov.uk/id/local-authority/30UE,CDIG-Customer and Digital,Materials General,4040,Sensor (1007323) - G010,11/11/2022,0000482548,324.72,Revenue,Refuse Vehicle Parts,0
South Ribble Borough Council,http://statistics.data.gov.uk/id/local-authority/30UE,CDIG-Customer and Digital,Materials General,4040,Barrier Arm (5012241) - G015,11/11/2022,0000482548,336.85,Revenue,Refuse Vehicle Parts,0
South Ribble Borough Council,http://statistics.data.gov.uk/id/local-authority/30UE,CDIG-Customer and Digital,Materials General,4040,Marker Light Red/White (5013400) - G018,11/11/2022,0000482548,72.99,Revenue,Refuse Vehicle Parts,0
South Ribble Borough Council,http://statistics.data.gov.uk/id/local-authority/30UE,CDIG-Customer and Digital,Materials General,4040,Underrun Sensor (5044512) - G024,11/11/2022,0000482548,495.95,Revenue,Refuse Vehicle Parts,0
South Ribble Borough Council,http://statistics.data.gov.uk/id/local-authority/30UE,CDIG-Customer and Digital,Materials General,4040,Hydraulic Filter Kit (5025256-1) - G027,11/11/2022,0000482548,488.29,Revenue,Refuse Vehicle Parts,0
South Ribble Borough Council,http://statistics.data.gov.uk/id/local-authority/30UE,CDIG-Customer and Digital,Materials General,4040,Tailgate Seal (106219-0) - G032,11/11/2022,0000482548,470.59,Revenue,Refuse Vehicle Parts,0
South Ribble Borough Council,http://statistics.data.gov.uk/id/local-authority/30UE,CDIG-Customer and Digital,Materials General,4040,Step Bolts (5044499) - G036,11/11/2022,0000482548,14.85,Revenue,Refuse Vehicle Parts,0
South Ribble Borough Council,http://statistics.data.gov.uk/id/local-authority/30UE,CDIG-Customer and Digital,Materials General,4040,Bin lift clamp arm pin (28852) - G047,11/11/2022,0000482548,138.51,Revenue,Refuse Vehicle Parts,0
South Ribble Borough Council,http://statistics.data.gov.uk/id/local-authority/30UE,CDIG-Customer and Digital,Materials General,4040,Bin lift clamp arm bearing (308015) - G050,11/11/2022,0000482548,27.00,Revenue,Refuse Vehicle Parts,0
South Ribble Borough Council,http://statistics.data.gov.uk/id/local-authority/30UE,CDIG-Customer and Digital,Materials General,4040,-Carriage,11/11/2022,0000482548,35.00,Revenue,Refuse Vehicle Parts,0
South Ribble Borough Council,http://statistics.data.gov.uk/id/local-authority/30UE,PDEV-Planning and Development,Consultancy Fees,4541,Professional consultancy services May-September 2022 ADDRESS REDACTED Planning Applications & Appeals,11/11/2022,0000482357,"18,455.12",Revenue,Richard Wood Associates Limited,0
South Ribble Borough Council,http://statistics.data.gov.uk/id/local-authority/30UE,CDIG-Customer and Digital,Operational Equip & Tools,4010,1x C22405- Marker Waterproof Crayon,25/11/2022,0000483248,7.52,Revenue,Roland Barnes Maintenance,0
South Ribble Borough Council,http://statistics.data.gov.uk/id/local-authority/30UE,CDIG-Customer and Digital,Operational Equip & Tools,4010,6x -SP2300M- Paint Marker Pen,25/11/2022,0000483248,27.48,Revenue,Roland Barnes Maintenance,0
South Ribble Borough Council,http://statistics.data.gov.uk/id/local-authority/30UE,CDIG-Customer and Digital,Materials General,4040,1x- ECT82- Cable ties 200 x 4.8 Bin No.348,25/11/2022,0000483248,5.10,Revenue,Roland Barnes Maintenance,0
South Ribble Borough Council,http://statistics.data.gov.uk/id/local-authority/30UE,CDIG-Customer and Digital,Materials General,4040,2x ECT87- Cable ties 200 x 4.6 Bin No.349,25/11/2022,0000483248,10.50,Revenue,Roland Barnes Maintenance,0
South Ribble Borough Council,http://statistics.data.gov.uk/id/local-authority/30UE,CDIG-Customer and Digital,Materials General,4040,2x ECT84- Cable ties 200 x 7.6 Bin No.349,25/11/2022,0000483248,19.80,Revenue,Roland Barnes Maintenance,0
South Ribble Borough Council,http://statistics.data.gov.uk/id/local-authority/30UE,CDIG-Customer and Digital,Materials General,4040,1x G66175- Pump sprayer chem/solvent,25/11/2022,0000483248,23.40,Revenue,Roland Barnes Maintenance,0
South Ribble Borough Council,http://statistics.data.gov.uk/id/local-authority/30UE,CDIG-Customer and Digital,Materials General,4040,2x-SAS8- Silicone spray 6pk,25/11/2022,0000483248,69.80,Revenue,Roland Barnes Maintenance,0
South Ribble Borough Council,http://statistics.data.gov.uk/id/local-authority/30UE,CDIG-Customer and Digital,Materials General,4040,2x DA202- RTV Silicone tube,25/11/2022,0000483248,11.90,Revenue,Roland Barnes Maintenance,0
South Ribble Borough Council,http://statistics.data.gov.uk/id/local-authority/30UE,CDIG-Customer and Digital,Materials General,4040,1x F53920-BOLTS HT M16 X50,25/11/2022,0000483248,18.97,Revenue,Roland Barnes Maintenance,0
South Ribble Borough Council,http://statistics.data.gov.uk/id/local-authority/30UE,CDIG-Customer and Digital,Materials General,4040,1x TOAHC12- Jigsaw Blade wood,25/11/2022,0000483248,8.90,Revenue,Roland Barnes Maintenance,0
South Ribble Borough Council,http://statistics.data.gov.uk/id/local-authority/30UE,CDIG-Customer and Digital,Materials General,4040,2x DA502- Copper grease tub,25/11/2022,0000483248,13.90,Revenue,Roland Barnes Maintenance,0
South Ribble Borough Council,http://statistics.data.gov.uk/id/local-authority/30UE,CDIG-Customer and Digital,Materials General,4040,1x EPT7- Insulating tape roll,25/11/2022,0000483248,11.45,Revenue,Roland Barnes Maintenance,0
South Ribble Borough Council,http://statistics.data.gov.uk/id/local-authority/30UE,CDIG-Customer and Digital,Materials General,4040,1x EFX75- Blade fuse stan 7.5 Bin no. 238,25/11/2022,0000483248,5.50,Revenue,Roland Barnes Maintenance,0
South Ribble Borough Council,http://statistics.data.gov.uk/id/local-authority/30UE,CDIG-Customer and Digital,Materials General,4040,1x F56030- Repair washers 5/16 Bin No. 85,25/11/2022,0000483248,8.42,Revenue,Roland Barnes Maintenance,0
South Ribble Borough Council,http://statistics.data.gov.uk/id/local-authority/30UE,CDIG-Customer and Digital,Materials General,4040,1x EFX110- Blade fuse mini 10 amp Bin No. 230,25/11/2022,0000483248,10.25,Revenue,Roland Barnes Maintenance,0
South Ribble Borough Council,http://statistics.data.gov.uk/id/local-authority/30UE,CDIG-Customer and Digital,Materials General,4040,1x EFX107- Blade fuse mini 7.5 AMP BIN NO. 230,25/11/2022,0000483248,10.25,Revenue,Roland Barnes Maintenance,0
South Ribble Borough Council,http://statistics.data.gov.uk/id/local-authority/30UE,GOVE-Governance,Postal Voting Costs,4422,Earnshaw Bridge by-election postal vote returns,25/11/2022,0000483193,839.84,Revenue,ROYAL MAIL GROUP PLC,0
South Ribble Borough Council,http://statistics.data.gov.uk/id/local-authority/30UE,COMP-Commercial and Property,Cap Contract Payment,C230,"ADDRESS REDACTED, Bamber Bridge (Housing Development)",11/11/2022,0000482356,"258,159.07",Revenue,RP Tyson Construction Ltd,0
South Ribble Borough Council,http://statistics.data.gov.uk/id/local-authority/30UE,COMP-Commercial and Property,Cap Contract Payment,C230,"ADDRESS REDACTED, Bamber Bridge (Housing Development)",18/11/2022,0000483089,"260,735.90",Revenue,RP Tyson Construction Ltd,0
South Ribble Borough Council,http://statistics.data.gov.uk/id/local-authority/30UE,CDIG-Customer and Digital,External Contractors Charges,4570,Call out to repair fault with left hand machine as per your order number 43835,11/11/2022,0000482804,420.63,Revenue,Saanro International Ltd,0
South Ribble Borough Council,http://statistics.data.gov.uk/id/local-authority/30UE,CDIG-Customer and Digital,Materials General,4040,1000 litres Hi Foaming TFR,11/11/2022,0000482926,"1,020.43",Revenue,Saanro International Ltd,0
South Ribble Borough Council,http://statistics.data.gov.uk/id/local-authority/30UE,CDIG-Customer and Digital,Office Requisites,4136,shred-it,04/11/2022,0000482579,755.51,Revenue,SHRED-IT LTD,0
South Ribble Borough Council,http://statistics.data.gov.uk/id/local-authority/30UE,PDEV-Planning and Development,Operational Equip & Tools,4010,Yearly lease and asset protection of HP XL-3600 Wide Format Printer plotter,25/11/2022,0000482601,"1,015.29",Revenue,Siemens Financial Services Limited,0
South Ribble Borough Council,http://statistics.data.gov.uk/id/local-authority/30UE,COMP-Commercial and Property,Cap Contract Payment,C230,Remove and reinstate defective internal partition wall to ADDRESS REDACTED. As per NAME REDACTED request,25/11/2022,0000481952,"7,948.76",Revenue,Singleton & Smart Ltd,0
South Ribble Borough Council,http://statistics.data.gov.uk/id/local-authority/30UE,COMP-Commercial and Property,Misc Capital Payments,C234,Works at Vernon Carus Site as per NAME REDACTED request and quotes dated June 2022 No allowance for any electrical works Description To remove exstig,25/11/2022,0000482921,"2,460.99",Revenue,Singleton & Smart Ltd,0
South Ribble Borough Council,http://statistics.data.gov.uk/id/local-authority/30UE,COMU-Communities,Professional Fees,4510,Delivery and admin of the HAF programme - Easter 2022,11/11/2022,0000482916,"8,040.00",Revenue,South Ribble Leisure Ltd,0
South Ribble Borough Council,http://statistics.data.gov.uk/id/local-authority/30UE,COMU-Communities,Professional Fees,4510,Delivery and admin of the HAF programme - Summer 2022 - includes Legend admin fee,11/11/2022,0000482917,"31,743.00",Revenue,South Ribble Leisure Ltd,0
South Ribble Borough Council,http://statistics.data.gov.uk/id/local-authority/30UE,CDIG-Customer and Digital,External Contractors Charges,4570,Spec repair - dashboard gauges lost. NUMBER PLATE REDACTED,11/11/2022,0000482349,830.00,Revenue,Southfield RCV Services Limited,0
South Ribble Borough Council,http://statistics.data.gov.uk/id/local-authority/30UE,CDIG-Customer and Digital,External Contractors Charges,4570,Spec repair to adblue system NUMBER PLATE REDACTED,11/11/2022,0000482350,899.76,Revenue,Southfield RCV Services Limited,0
South Ribble Borough Council,http://statistics.data.gov.uk/id/local-authority/30UE,CDIG-Customer and Digital,Materials General,4040,10x Scraper wires Bin.1060 35 x Cylinder seals Bin. 1109 6x Adjusting rods Bin.1111 6x Cylinder pivot pins Bin.1128 70x Cylinder bearing Bin 1138 12x,25/11/2022,0000483005,"1,288.70",Revenue,SPALDINGS,0
South Ribble Borough Council,http://statistics.data.gov.uk/id/local-authority/30UE,COMP-Commercial and Property,Gas,2304,2/9 to 24/10/22,18/11/2022,0000483076,"1,101.41",Revenue,SSE 271850110 Moss Side CC Dunkirk Hall,0
South Ribble Borough Council,http://statistics.data.gov.uk/id/local-authority/30UE,COMU-Communities,Dev ftarget Sports-Coaching,4894,Supply of catering for 150 guests at South Ribble Sports Awards,11/11/2022,0000482602,"1,777.08",Revenue,St Catherines Social Enterprise Ltd,0
South Ribble Borough Council,http://statistics.data.gov.uk/id/local-authority/30UE,COMU-Communities,Cap Contract Payment,C230,Leisure Local Funds for On the Right Path. Funds for essential maintenance work.,18/11/2022,0000483127,"17,000.00",Revenue,St Paul`s Bowling Club,0
South Ribble Borough Council,http://statistics.data.gov.uk/id/local-authority/30UE,CDIG-Customer and Digital,Diesel Fuel,3132,16000 Ltrs Diesel into the tank at ADDRESS REDACTED key for cabinet is available from the main office,04/11/2022,0000482619,"23,933.93",Revenue,Standard Fuel Oils LtdMain,0
South Ribble Borough Council,http://statistics.data.gov.uk/id/local-authority/30UE,COMU-Communities,Dev ftarget Sports-Coaching,4894,To supply filming and editing services for the South Ribble Sports Awards 2022 Videos.11 awards films ,11/11/2022,0000482980,"2,200.00",Revenue,STANLEY ROAD FILM AND MEDIA LTD,0
South Ribble Borough Council,http://statistics.data.gov.uk/id/local-authority/30UE,COMU-Communities,Dev ftarget Sports-Coaching,4894,"Nominee `Photoshoot` Screen Filming - to supply lighting, cameraman and screen hire (2 dates - 9th and 12th September at the council offices)",11/11/2022,0000482980,950.00,Revenue,STANLEY ROAD FILM AND MEDIA LTD,0
South Ribble Borough Council,http://statistics.data.gov.uk/id/local-authority/30UE,COMU-Communities,Dev ftarget Sports-Coaching,4894,Nominee `Photoshoot` Screen film editing,11/11/2022,0000482980,325.00,Revenue,STANLEY ROAD FILM AND MEDIA LTD,0
South Ribble Borough Council,http://statistics.data.gov.uk/id/local-authority/30UE,COMU-Communities,Dev ftarget Sports-Coaching,4894,Nominee photos dinner loop slideshow,11/11/2022,0000482980,150.00,Revenue,STANLEY ROAD FILM AND MEDIA LTD,0
South Ribble Borough Council,http://statistics.data.gov.uk/id/local-authority/30UE,COMU-Communities,Dev ftarget Sports-Coaching,4894,"To supply technical services, laptop and running of the awards presentation on the 14th October 2022",11/11/2022,0000482980,250.00,Revenue,STANLEY ROAD FILM AND MEDIA LTD,0
South Ribble Borough Council,http://statistics.data.gov.uk/id/local-authority/30UE,COMU-Communities,Capital Grant,C570,DFG WORK TO SUPPLY AND INSTALL A STAIRLIFT  AT ADDRESS REDACTED AS PER QUOTE SUPPLIED,11/11/2022,0000482914,"2,979.00",Revenue,Stannah Lift Services Ltd,0
South Ribble Borough Council,http://statistics.data.gov.uk/id/local-authority/30UE,CDIG-Customer and Digital,Operational Equip & Tools,4010,1 x Samsung LH85BEAHLGUXEN TV 1 x Peerless SF670P TV mount 2.29 m (46-90``) Black,18/11/2022,0000482083,"2,090.20",Revenue,Starcom Technologies,0
South Ribble Borough Council,http://statistics.data.gov.uk/id/local-authority/30UE,COMP-Commercial and Property,External Catering Charges,4575,80 Curry with accompaniments to include 10 veggie.To be delivered 28th Oct @ 7 pm,11/11/2022,0000482913,520.00,Revenue,Style Catering,0
South Ribble Borough Council,http://statistics.data.gov.uk/id/local-authority/30UE,CDIG-Customer and Digital,Network and Security,4247,South Ribble Element of the Chorley & South Ribble Council Network Integration Professional Services,04/11/2022,0000482651,"1,137.50",Revenue,The Networking People (TNP) Ltd,0
South Ribble Borough Council,http://statistics.data.gov.uk/id/local-authority/30UE,CDIG-Customer and Digital,Network and Security,4247,"Resilient Internet Route 2: South Ribble Borough Council Civic Centre *Route 1 quoted seperatly 002 Install 2/10Gb Internet service, 3 year minimum t",25/11/2022,0000482755,"4,172.25",Revenue,The Networking People (TNP) Ltd,0
South Ribble Borough Council,http://statistics.data.gov.uk/id/local-authority/30UE,POLY-Policy,Occupational Health,1408,6 X SESSIONS OF THERAPY FOR AH AS AGREED,11/11/2022,0000482909,420.00,Revenue,THE THERAPY COMPANY,0
South Ribble Borough Council,http://statistics.data.gov.uk/id/local-authority/30UE,CDIG-Customer and Digital,Miscellaneous Expenses,4851,Additional modelling at stage 2 support.,18/11/2022,0000482906,"1,321.88",Revenue,THE WASTE & RESOURCES ACTION PROGRAMME,0
South Ribble Borough Council,http://statistics.data.gov.uk/id/local-authority/30UE,Revenues Plus,Legal Fees,4513,PROFESSIONAL SERVICES WITH REGARD TO A SETTLEMENT AGREEMENT FOR NAME REDACTED,04/11/2022,0000480379,350.00,Revenue,THOMPSONS SOLICITORS,0
South Ribble Borough Council,http://statistics.data.gov.uk/id/local-authority/30UE,POLY-Policy,Legal,4821,Fees in relation to NAME REDACTED,18/11/2022,0000483098,350.00,Revenue,THOMPSONS SOLICITORS,0
South Ribble Borough Council,http://statistics.data.gov.uk/id/local-authority/30UE,CDIG-Customer and Digital,Materials General,4040,2x Tyres NUMBER PLATE REDACTED,11/11/2022,0000482782,364.30,Revenue,Tomlinson Road Tyres,0
South Ribble Borough Council,http://statistics.data.gov.uk/id/local-authority/30UE,COMP-Commercial and Property,Electricity,2303,1/10 to 31/10/22,25/11/2022,0000483107,"3,661.15",Revenue,Total Gas & power Ltd,0
South Ribble Borough Council,http://statistics.data.gov.uk/id/local-authority/30UE,COMP-Commercial and Property,Electricity,2303,1/10 to 31/10/22,25/11/2022,0000483108,"1,613.61",Revenue,Total Gas & power Ltd,0
South Ribble Borough Council,http://statistics.data.gov.uk/id/local-authority/30UE,COMP-Commercial and Property,Electricity,2303,1/10 to 31/10/22,25/11/2022,0000483109,"2,537.89",Revenue,Total Gas & power Ltd,0
South Ribble Borough Council,http://statistics.data.gov.uk/id/local-authority/30UE,COMP-Commercial and Property,Electricity,2303,1/10 to 31/10/22,25/11/2022,0000483113,639.67,Revenue,Total Gas & power Ltd,0
South Ribble Borough Council,http://statistics.data.gov.uk/id/local-authority/30UE,COMP-Commercial and Property,Gas,2304,30/9 to 31/10/22,25/11/2022,0000483114,"1,189.63",Revenue,Total Gas & power Ltd,0
South Ribble Borough Council,http://statistics.data.gov.uk/id/local-authority/30UE,COMP-Commercial and Property,Gas,2304,31/7 to 31/8/22,25/11/2022,0000483231,386.16,Revenue,Total Gas & power Ltd,0
South Ribble Borough Council,http://statistics.data.gov.uk/id/local-authority/30UE,COMP-Commercial and Property,Gas,2304,31/7 to 31/8/22,25/11/2022,0000483232,915.98,Revenue,Total Gas & power Ltd,0
South Ribble Borough Council,http://statistics.data.gov.uk/id/local-authority/30UE,COMP-Commercial and Property,Gas,2304,31/7 to 31/10/22,25/11/2022,0000483237,451.82,Revenue,Total Gas & power Ltd,0
South Ribble Borough Council,http://statistics.data.gov.uk/id/local-authority/30UE,COMP-Commercial and Property,Gas,2304,31/7 to 31/10/22,25/11/2022,0000483238,363.71,Revenue,Total Gas & power Ltd,0
South Ribble Borough Council,http://statistics.data.gov.uk/id/local-authority/30UE,COMU-Communities,Cap Expenditure Other,C750,2021-22 DOUBLE GLAZING SCHEME FUNDS AS PER TENDER SPECIFICATIONS,25/11/2022,0000482988,772.00,Revenue,TRADE WINDOWS & CONSERVATORIES,0
South Ribble Borough Council,http://statistics.data.gov.uk/id/local-authority/30UE,COMU-Communities,Cap Expenditure Other,C750,2021-22 DOUBLE GLAZING SCHEME FUNDS AS PER TENDER SPECIFICATIONS,25/11/2022,0000483117,"1,139.00",Revenue,TRADE WINDOWS & CONSERVATORIES,0
South Ribble Borough Council,http://statistics.data.gov.uk/id/local-authority/30UE,COMP-Commercial and Property,External Catering Charges,4575,Fairtrade brown sugar x5 cases Fairtrade White sugar x2 cases Fairtrade Enveloped Tea bags x5 cases Sweeteners x5 cases,11/11/2022,0000482905,303.25,Revenue,TREVORS FOOD SERVICE,0
South Ribble Borough Council,http://statistics.data.gov.uk/id/local-authority/30UE,CDIG-Customer and Digital,External Contractors Charges,4570,1 x gearbox reconditioned NUMBER PLATE REDACTED,25/11/2022,0000483142,575.00,Revenue,Truck Transmissions Ltd,0
South Ribble Borough Council,http://statistics.data.gov.uk/id/local-authority/30UE,CDIG-Customer and Digital,External Contractors Charges,4570,Truck Tyre Maintenance September 2022,11/11/2022,0000483018,"3,354.86",Revenue,Tructyre Fleet Management Ltd,0
South Ribble Borough Council,http://statistics.data.gov.uk/id/local-authority/30UE,CDIG-Customer and Digital,External Contractors Charges,4570,"Tree works @ Penwortham Holme Car Park, Penwortham",04/11/2022,0000482603,"4,200.00",Revenue,Trunks Tree Care Ltd,0
South Ribble Borough Council,http://statistics.data.gov.uk/id/local-authority/30UE,CDIG-Customer and Digital,External Contractors Charges,4570,Tree works at Middleforth Green � Leyland Road Boundary,04/11/2022,0000482686,"4,650.00",Revenue,Trunks Tree Care Ltd,0
South Ribble Borough Council,http://statistics.data.gov.uk/id/local-authority/30UE,POLY-Policy,UK Healthcare,1710,Staff Healthcare Scheme,11/11/2022,0000482698,"1,867.60",Revenue,UK healthcare (BDHSC),0
South Ribble Borough Council,http://statistics.data.gov.uk/id/local-authority/30UE,POLY-Policy,UK Healthcare,1710,Staff Healthcare scheme,11/11/2022,0000482699,"1,467.40",Revenue,UK healthcare (BDHSC),0
South Ribble Borough Council,http://statistics.data.gov.uk/id/local-authority/30UE,POLY-Policy,UK Healthcare,1710,Staff Healthcare scheme,11/11/2022,0000482788,"1,752.60",Revenue,UK healthcare (BDHSC),0
South Ribble Borough Council,http://statistics.data.gov.uk/id/local-authority/30UE,POLY-Policy,UK Healthcare,1710,Staff Healthcare scheme,18/11/2022,0000483012,"1,748.00",Revenue,UK healthcare (BDHSC),0
South Ribble Borough Council,http://statistics.data.gov.uk/id/local-authority/30UE,POLY-Policy,Professional Fees,4510,NAME REDACTED To host the show + provide a Brother Beyond set / entertain during longer turnarounds SQ8543,25/11/2022,0000482812,"1,250.00",Revenue,UK Media Events Ltd,0
South Ribble Borough Council,http://statistics.data.gov.uk/id/local-authority/30UE,POLY-Policy,Professional Fees,4510,50% Balance for NAME REDACTED to appear at Leyland Christmas Lights,25/11/2022,0000483249,"1,375.00",Revenue,UK Media Events Ltd,0
South Ribble Borough Council,http://statistics.data.gov.uk/id/local-authority/30UE,POLY-Policy,Contributions to Other Bodies,4730,Year 2 delivery of the Credit Union project,11/11/2022,0000482894,"12,500.00",Revenue,Unify Credit Union Ltd,0
South Ribble Borough Council,http://statistics.data.gov.uk/id/local-authority/30UE,COMP-Commercial and Property,Operational Equip & Tools,4010,Contactless Water coolers for civic - includes installation & non return valves - requested by NAME REDACTED,25/11/2022,0000483047,695.00,Revenue,VENDING ENTERPRISES,0
South Ribble Borough Council,http://statistics.data.gov.uk/id/local-authority/30UE,GOVE-Governance,Agency Staff,1121,FURTHER PURCHASE ORDER OF ENGAGING LOCUM SOLICITOR NAME REDACTED - CONTRACT TO SEPTEMBER 2022,04/11/2022,0000482457,769.13,Revenue,VENN GROUP LTD,0
South Ribble Borough Council,http://statistics.data.gov.uk/id/local-authority/30UE,GOVE-Governance,Agency Staff,1121,FURTHER PURCHASE ORDER FOR ENGAGING LOCUM SOLICITOR NAME REDACTED- CONTRACT TO SEPTEMBER 2022,04/11/2022,0000482465,"2,284.28",Revenue,VENN GROUP LTD,0
South Ribble Borough Council,http://statistics.data.gov.uk/id/local-authority/30UE,PDEV-Planning and Development,Agency Staff,1121,Consultant Planning Officer NAME REDACTED - 6 month contract to provide additional support to Development Management.,25/11/2022,0000482605,"1,995.00",Revenue,Vivid Resourcing,0
South Ribble Borough Council,http://statistics.data.gov.uk/id/local-authority/30UE,PDEV-Planning and Development,Agency Staff,1121,Consultant Planning Officer NAME REDACTED - 6 month contract to provide additional support to Development Management.,25/11/2022,0000482691,"1,995.00",Revenue,Vivid Resourcing,0
South Ribble Borough Council,http://statistics.data.gov.uk/id/local-authority/30UE,COMP-Commercial and Property,Agency Staff,1121,Invoice for Credit note 3974,25/11/2022,0000483045,"1,150.00",Revenue,Vivid Resourcing,0
South Ribble Borough Council,http://statistics.data.gov.uk/id/local-authority/30UE,CDIG-Customer and Digital,Computer Equipment,4241,SRBC CEO Office 1 x Microsoft Teams Room Systems 1 x Optional Advanced Replacement Service,11/11/2022,0000482799,"4,483.00",Revenue,VP-AV LTD,0
South Ribble Borough Council,http://statistics.data.gov.uk/id/local-authority/30UE,COMU-Communities,Professional Fees,4510,HAF activity provider for summer camps. Weeks 1 and 2. 3-11 August,11/11/2022,0000483044,"1,620.00",Revenue,Wade Hall Community Association,0
South Ribble Borough Council,http://statistics.data.gov.uk/id/local-authority/30UE,COMU-Communities,Professional Fees,4510,HAF activity provider for summer camps. Weeks 3 and 4. 17-25 August,11/11/2022,0000483044,"1,620.00",Revenue,Wade Hall Community Association,0
South Ribble Borough Council,http://statistics.data.gov.uk/id/local-authority/30UE,CDIG-Customer and Digital,Plants Trees & Shrubs,4046,Spring bedding plants and bulbs as per quotation For delivery week commencing Monday 3rd October 2022. Contact to be made with NAME REDACTED on PHONE,04/11/2022,0000482694,"3,256.10",Revenue,Walkers Nurseries Chester Ltd,0
South Ribble Borough Council,http://statistics.data.gov.uk/id/local-authority/30UE,CDIG-Customer and Digital,Materials General,4040,Lift cylinder Roller bearings Spherical bearings Protective rubber flap Shaft Bush Flange Bush Upper plastic strip Lower plastic Strip NUMBER PLATE R,11/11/2022,0000482889,"1,364.74",Revenue,WasteParts UK Ltd,0
South Ribble Borough Council,http://statistics.data.gov.uk/id/local-authority/30UE,CDIG-Customer and Digital,Materials General,4040,"1x bin clamp cylinder, NUMBER PLATE REDACTED",25/11/2022,0000483043,340.43,Revenue,WasteParts UK Ltd,0
South Ribble Borough Council,http://statistics.data.gov.uk/id/local-authority/30UE,GOVE-Governance,Legal,4821,PROFESSIONAL SERVICES WITH REGARD TO THE TEST TRACK - NAME REDACTED - W15581-5,11/11/2022,0000482794,"2,524.80",Revenue,WEIGHTMANS LLP,0
South Ribble Borough Council,http://statistics.data.gov.uk/id/local-authority/30UE,COMP-Commercial and Property,Planned Annual Repair & Maintenance,2021,Continuation of hire of unit at Penwortham Holme as per NAME REDACTED request for 2022/2023 April 2022 May 2022 June 2022 July 2022 August 2022 Sept2,11/11/2022,0000482887,434.00,Revenue,Wernick Hire Ltd,0
South Ribble Borough Council,http://statistics.data.gov.uk/id/local-authority/30UE,CDIG-Customer and Digital,Franked Post,4292,Ongoing mail delivery costs at South Ribble,11/11/2022,0000482759,281.14,Revenue,WHISTL  UK LTD,0
South Ribble Borough Council,http://statistics.data.gov.uk/id/local-authority/30UE,CDIG-Customer and Digital,Franked Post,4292,Ongoing mail delivery costs at South Ribble,11/11/2022,0000482885,321.33,Revenue,WHISTL  UK LTD,0
South Ribble Borough Council,http://statistics.data.gov.uk/id/local-authority/30UE,CDIG-Customer and Digital,Franked Post,4292,Ongoing mail delivery costs at South Ribble,11/11/2022,0000482886,365.21,Revenue,WHISTL  UK LTD,0
South Ribble Borough Council,http://statistics.data.gov.uk/id/local-authority/30UE,CDIG-Customer and Digital,Franked Post,4292,Ongoing mail delivery costs at South Ribble,18/11/2022,0000483140,485.39,Revenue,WHISTL  UK LTD,0
South Ribble Borough Council,http://statistics.data.gov.uk/id/local-authority/30UE,CDIG-Customer and Digital,GM Refurbishment,4657, Up to 10no vinyl overlays on existing plates,04/11/2022,0000482604,600.00,Revenue,WOODSTOCK SIGNS,0
South Ribble Borough Council,http://statistics.data.gov.uk/id/local-authority/30UE,CDIG-Customer and Digital,Software Licensing,4243,.,04/11/2022,0000482629,447.72,Revenue,Zen Internet,0
